{"text_format":"1","workbook":"xlsx","n_sheets":9,"sheets":["MATRIZ DE INDICADORES","----1","AJU-4","AJU-5","AJU-6","AJU-7","AJU-8","ACTUALIZACIONES","ITEM"],"not_rendered":{"charts":6,"images":4,"macros":1,"external_links":1,"defined_names":13,"comments":4,"pivot_tables":0},"unopened":[],"bounds":{"document_bytes":16777216,"sheet_cells":100000,"rows_first":2000,"rows_last":500,"rows_between":2000,"halvings":0,"cell_chars":16384,"cell_head_chars":4096},"cells_cut":0,"cells_raw":0,"read":"whole","date_system":"1900"}

{"sheet":"MATRIZ DE INDICADORES","index":0,"n_rows":63,"n_cols":21,"rows_kept":63,"cut":false,"hidden":false,"merged":[[12,1,26,1],[24,20,26,20],[24,18,26,18],[24,19,26,19],[12,5,26,5],[12,4,26,4],[24,8,26,8],[24,9,26,9],[24,10,26,10],[24,11,26,11],[24,17,26,17],[14,18,18,18],[14,19,18,19],[14,20,18,20],[19,6,23,6],[19,7,23,7],[12,3,26,3],[19,18,23,18],[19,19,23,19],[19,20,23,20],[14,8,18,8],[14,9,18,9],[14,10,18,10],[14,11,18,11],[14,17,18,17],[19,8,23,8],[19,9,23,9],[19,10,23,10],[19,11,23,11],[19,17,23,17],[12,2,26,2],[6,16,7,17],[9,1,10,20],[39,1,39,20],[40,1,40,20],[12,6,13,6],[12,12,13,12],[12,13,13,13],[12,14,13,14],[12,15,13,15],[12,16,13,16],[12,17,13,17],[14,6,18,6],[14,7,18,7],[24,6,26,6],[24,7,26,7],[1,1,4,2],[1,3,1,17],[1,18,1,20],[2,3,2,17],[2,18,2,20],[3,3,4,17],[3,18,3,20],[4,18,4,20]]}
[]
[null,null,null,"MACROPROCESO ESTRATÉGICO",null,null,null,null,null,null,null,null,null,null,null,null,null,null,"CÓDIGO: ESGr027"]
[null,null,null,"PROCESO GESTIÓN SISTEMAS INTEGRADOS - CALIDAD",null,null,null,null,null,null,null,null,null,null,null,null,null,null,"VERSIÓN: 8"]
[null,null,null,"MATRIZ DE MEDICIÓN Y SEGUIMIENTO A LOS PROCESOS DE GESTIÓN",null,null,null,null,null,null,null,null,null,null,null,null,null,null,"VIGENCIA: 2023-07-28"]
[null,null,null,null,null,null,null,null,null,null,null,null,null,null,null,null,null,null,"PÁGINA: 1 de 4"]
[]
[null,null,null,null,null,null,null,null,null,null,null,null,null,null,null,null,"FECHA DE ACTUALIZACIÓN:",null,"AÑO","MES","DÍA"]
[null,null,null,null,null,null,null,null,null,null,null,null,null,null,null,null,null,null,2024,2,27]
[]
[null,"ALINEACIÓN DE LOS INDICADORES CON LOS DOCUMENTOS ESTRATÉGICOS Y LOS OBJETIVOS DE CALIDAD"]
[]
[null,"PROCESO GESTIÓN","FRENTES DEL PLAN ESTRATÉGICO","LINEAMIENTOS DE LA POLÍTICA DE CALIDAD","OBJETIVOS DE CALIDAD","OBJETIVO GENERAL DEL PROCESO","OBJETIVOS ESPECÍFICOS","NOMBRE INDICADOR","FÓRMULA","TIPO DE INDICADOR","SEGUIMIENTO MEDICIÓN","META","ACTIVIDAD","RESPONSABLE DE LA ACTIVIDAD","¿QUÉ RECURSOS SE REQUIEREN?","FECHA EJECUCIÓN DE ACTIVIDADES","EVIDENCIA","¿CUÁNDO FINALIZARÁ?","RESULTADO ","NIVEL OBTENIDO","ACCESO"]
[null,"Jurídica","Frente Estratégico VI: Organización Universitaria inteligente con alma y corazón.","Se legitima como una organización social del conocimiento y el aprendizaje que se compromete con el pensamiento basado en riesgos y el mejoramiento continuo mediante buenas prácticas administrativas y académicas en búsqueda de la acreditación de programas y la acreditación institucional, enfocándose en el bienestar de la comunidad universitaria como factor constitutivo de la vida y la libertad y la consolidación de una organización universitaria inteligente con alma y corazón.","5. Mejorar continuamente el desempeño de los procesos a través de la implementación de buenas prácticas institucionales y de la aplicación de los mecanismos dispuestos por la Universidad de Cundinamarca, para la constitución de una organización universitaria inteligente con alma y corazón.","Apoyar a las diferentes dependencias de la Universidad de Cundinamarca, verificando el cumplimiento de requisitos legales para la contratación, emitiendo conceptos y representando judicial y extrajudicialmente a la Universidad de Cundinamarca, a través del estudio y aplicación permanente de la normatividad vigente con el fin de que todas las actividades realizadas por los diferentes procesos se encuentren ajustadas aL derecho.","1.\tResponder un 85% de todas las revisiones de las minutas y garantías de contratación directa, y un 80% a todos los requerimientos jurídicos de forma oportuna dentro de la plataforma Integradoc para el año 2024, con verificación permanente de los requisitos legales de acuerdo a la normatividad vigente y de los tiempos establecidos por la Universidad a través de seguimiento trimestral y semestral.","Oportunidad de respuesta en revisión minuta y garantía de contratación Directa","Número de solicitudes atendidas oportunamente *100 / Total de solicitudes cerradas","EFICACIA","Semestral",0.85,"1.1 Gestionar capacidad instalada (recurso humano) para la ejecución de las actividades\n\n1.2 Establecer mediante acto administrativo tiempos de respuesta a las solicitudes referentes\n\n1.3 Verificar y actualizar roles en Integradoc\n\n1.4 Implementar las actividades de los procedimientos AJUP01 ASESORÍA JURÍDICA, ABSP18 SUPERVISORES E INTERVENTORES (Actividad 3) y ABSP01 ADQUISICIÓN DE BIENES, SERVICIOS U OBRAS CONTRATACIÓN DIRECTA (Actividad 16)\n\n1.5 Evaluar mediante los indicadores establecidos\n\n","1.1 Dirección Jurídica\n\n1.2 Secretaría General - Vicerrectoría Administrativa y Financiera\n\n1.3 Dirección Jurídica - Integradoc\n\n1.4 Dirección Jurídica\n\n1.5 Dirección Jurídica","1.1 Financiero\n\n1.2 Recurso Humano, Herramientas Ofimáticas\n\n1.3 Recurso Humano, Herramientas Ofimáticas, Herramienta Integradoc, Conexión a internet\n\n1.4 Recurso Humano, Herramientas Ofimáticas, Herramienta Integradoc, Conexión a internet\n\n1.5 Recurso Humano, Información documentada","1.1 enero 2024\n\n1.2 09/08/2021 - \n03/06/2022\n\n1.3 2024\n\n1.4 2024\n\n1.5 marzo / junio / septiembre / diciembre y Semestral 2024","1.1 Proyección presupuestal - Contratos\n\n1.2 Circular No. 008 de 2021  -  Circular No. 006 de 2022\n\n1.3 Correos electrónicos\n\n1.4 Registro Integradoc, Correo Electrónico Institucional\n\n1.5 Reporte de los indicadores - Fichas técnicas","2024-12-01",0.49,"ACEPTABLE","AJU-4"]
[null,null,null,null,null,null,null,"Oportunidad en los términos de respuesta frente a los requerimientos jurídicos (Integradoc)","N° solicitudes atendidas en los términos establecidos (requerimientos jurídicos por Integradoc) *100 / Total de solicitudes contestadas, allegadas como requerimientos jurídicos por Integradoc","EFICACIA","Trimestral",0.8,null,null,null,null,null,null,0.74,"BUENO","AJU-7"]
[null,null,null,null,null,null,"Dar respuesta oportuna en un 85% para el año 2024 a toda la revisión de términos de referencia y minuta de contratación Público-Privada cumpliendo los lineamientos definidos por la Universidad con un seguimiento semestral.","Oportunidad de respuesta en revisión de términos de referencia y minuta de contratación Publico-Privada","Número de solicitudes atendidas oportunamente * 100 / Total de solicitudes cerradas","EFICACIA","Semestral",0.85,"2.1 Gestionar capacidad instalada (recurso humano) para la ejecución de las actividades","Dirección Jurídica","Financiero","2024-01-01","Proyección presupuestal - Contratos","2024-12-01",0.65,"ACEPTABLE","AJU-5"]
[null,null,null,null,null,null,null,null,null,null,null,null,"2.2 Establecer mediante acto administrativo tiempos de respuesta a las solicitudes referentes","Secretaría General - Vicerrectoría Administrativa y Financiera","Recurso Humano","09/08/2021\n03/06/2022","Circular No. 008 de 2021\nCircular No. 006 de 2022"]
[null,null,null,null,null,null,null,null,null,null,null,null,"2.3 Verificar y actualizar roles en Integradoc","Dirección Jurídica - Integradoc","Recurso Humano, Herramientas Ofimáticas, Herramienta Integradoc, Conexión a internet",2024,"Correos electrónicos"]
[null,null,null,null,null,null,null,null,null,null,null,null,"2.4 Implementar las actividades del procedimiento ABSP15 (Actividad 8 y 22)","Dirección Jurídica","Recurso Humano, Herramientas Ofimáticas, Herramienta Integradoc, Conexión a internet",2024,"Registro Integradoc, Correo Electrónico notificación"]
[null,null,null,null,null,null,null,null,null,null,null,null,"2.5 Evaluar mediante indicador establecido","Dirección Jurídica","Recurso Humano, Información documentada","I y II SEMESTRE 2024","Reporte del indicador - Ficha técnica"]
[null,null,null,null,null,null,"Gestionar y hacer seguimiento en un 80% a los casos recibidos para la recuperación de cartera durante el 2024, con diligencia pertinente a los procesos judiciales."," Proceso Jurídico en Recuperación de cartera","Casos gestionados y con seguimiento*100/Total de casos en/para cobro jurídico (a satisfacción de criterios)\n\nNotas:\nCasos gestionados se entenderán como aquellos analizados y que cuenten con el cumplimiento a satisfacción de los requisitos jurídicos.\n\nCasos en seguimiento se entenderán como aquellos que se encuentran radicados ante el ente judicial competente.","EFICIENCIA","Semestral",0.8,"3.1 Recepcionar títulos valores por parte del área de Financiera","Dirección Financiera -Dirección Jurídica","Base de datos documentada, Recurso Humano, Herramientas ofimáticas",2024,"Títulos Valores, Correo Electrónico Institucional","2024-12-01",1,"EXCELENTE","AJU-6"]
[null,null,null,null,null,null,null,null,null,null,null,null,"3.2 Verificar la completitud de la información de los títulos valores","Dirección Jurídica","Base de datos documentada, Recurso Humano, Herramientas ofimáticas",2024,"Títulos Valores, Correo Electrónico Institucional"]
[null,null,null,null,null,null,null,null,null,null,null,null,"3.3 Gestionar, aprobar y suscribir poder con las formalidades de ley, poder para representar judicialmente a la Universidad ","Secretaría General","Títulos Valores, Recurso Humano, Herramientas ofimáticas",2024,"Correo Electrónico, y AJUr002 Poder"]
[null,null,null,null,null,null,null,null,null,null,null,null,"3.4 Implementar las actividades de los procedimientos AFIP31 FRACCIONAMIENTO DE MATRICULA Y RECUPERACIÓN DE CARTERA (Actividades 42-44) y AJUP05 REPRESENTACIÓN JUDICIAL Y ADMINISTRATIVA","Dirección Jurídica","Títulos Valores, Recurso Humano, Herramientas ofimáticas",2024,"Trámite judicial"]
[null,null,null,null,null,null,null,null,null,null,null,null,"3.5 Evaluar mediante indicador establecido","Dirección Jurídica","Recurso Humano, Información documentada","I y II SEMESTRE 2024","Reporte del indicador - Ficha técnica"]
[null,null,null,null,null,null,"Adelantar las diligencias judiciales en pro de ganar mínimo el 85% de las tutelas en que la Universidad es la accionada durante el 2024, con seguimiento trimestral.","Eficacia en la defensa judicial de las acciones de tutela en que la Universidad es la accionada","(No.  tutelas ganadas/Total tutelas accionadas archivadas) *100 ","EFICACIA","Trimestral",0.85,"4.1 Recepcionar las tutelas","Dirección Jurídica-Dependencias de la Universidad","Recurso Humano, Información documentada, Herramientas Ofimáticas",2024,"Correo Electrónico","2024-12-01",1,"EXCELENTE","AJU-8"]
[null,null,null,null,null,null,null,null,null,null,null,null,"4.2 Implementar las actividades del procedimiento AJUP05 (Actividad 9)","Dirección Jurídica","Recurso Humano, Información documentada, Herramientas Ofimáticas",2024,"Correo Electrónico, ADOr001, AJUr013"]
[null,null,null,null,null,null,null,null,null,null,null,null,"4.3 Evaluar mediante indicador establecido","Dirección Jurídica","Recurso Humano, Información documentada","marzo / junio / septiembre / diciembre","Reporte del indicador - Ficha técnica"]
[]
[]
[]
[]
[]
[]
[]
[]
[]
[]
[]
[]
[null,"Diagonal 18 No. 20-29 Fusagasugá – Cundinamarca\nTeléfono (601)  8281483 Línea Gratuita 018000180414\nwww.ucundinamarca.edu.co   E-mail:  info@ucundinamarca.edu.co\nNIT: 890.680.062-2                                                                             "]
[null,"Documento controlado por el Sistema de Gestión de la Calidad\nAsegúrese que corresponde a la última versión consultando el Portal Institucional"]
[]
[]
[]
[]
[]
[]
[]
[]
[]
[]
[]
[]
[]
[]
[]
[]
[null,null,"LINEAMIENTOS DE LA POLÍTICA DE CALIDAD","OBJETIVOS DE CALIDAD","ALINEACIÓN DE LOS INDICADORES CON LOS DOCUMENTOS ESTRATÉGICOS Y LOS OBJETIVOS DE CALIDAD"]
[null,null,"LINEAMIENTOS DE LA POLÍTICA DE SEGURIDAD Y SALUD EN EL TRABAJO","OBJETIVOS DE SEGURIDAD Y SALUD EN EL TRABAJO","ALINEACIÓN DE LOS INDICADORES CON LOS DOCUMENTOS ESTRATÉGICOS Y LOS OBJETIVOS DE SEGURIDAD Y SALUD EN EL TRABAJO"]
[null,null,"LINEAMIENTOS DE LA POLÍTICA DE AMBIENTAL","OBJETIVOS DE AMBIENTAL","ALINEACIÓN DE LOS INDICADORES CON LOS DOCUMENTOS ESTRATÉGICOS Y LOS OBJETIVOS DE AMBIENTAL"]
[null,null,"LINEAMIENTOS DE LA POLÍTICA DE SEGURIDAD DE LA INFORMACIÓN","OBJETIVOS DE SEGURIDAD DE LA INFORMACIÓN","ALINEACIÓN DE LOS INDICADORES CON LOS DOCUMENTOS ESTRATÉGICOS Y LOS OBJETIVOS DE SEGURIDAD DE LA INFORMACIÓN"]
[null,null,"LINEAMIENTOS DE LA POLÍTICA DE SEGURIDAD DE ANTISOBORNO","OBJETIVOS DE SEGURIDAD DE ANTISOBORNO","ALINEACIÓN DE LOS INDICADORES CON LOS DOCUMENTOS ESTRATÉGICOS Y LOS OBJETIVOS DE SEGURIDAD DE ANTISOBORNO"]
[null,null,"LINEAMIENTOS DE LA POLÍTICA DE LA CONCILIACIÓN DE LA VIDA PERSONAL, FAMILIAR Y LABORAL","OBJETIVOS DE LA CONCILIACIÓN DE LA VIDA PERSONAL, FAMILIAR Y LABORAL","ALINEACIÓN DE LOS INDICADORES CON LOS DOCUMENTOS ESTRATÉGICOS Y LOS OBJETIVOS DE LA CONCILIACIÓN DE LA VIDA PERSONAL, FAMILIAR Y LABORAL"]

{"sheet":"----1","index":1,"n_rows":99,"n_cols":15,"rows_kept":99,"cut":false,"hidden":true,"merged":[[15,2,15,14],[16,2,16,3],[16,11,16,12],[16,13,16,14],[16,7,16,8],[16,9,16,10],[16,4,16,6],[12,2,12,3],[12,4,12,14],[13,2,13,3],[13,4,13,14],[14,2,14,14],[1,1,3,2],[4,2,7,3],[4,4,4,11],[4,12,4,14],[5,4,5,11],[5,12,5,14],[6,4,7,11],[6,12,6,14],[7,12,7,14],[9,2,10,14],[11,2,11,3],[11,4,11,7],[11,8,11,9],[11,10,11,14],[17,4,18,10],[17,11,18,12],[17,13,18,14],[17,2,18,3],[22,2,23,3],[22,9,23,10],[19,2,21,3],[19,7,21,8],[19,4,21,6],[16,15,17,15],[16,16,17,16],[16,17,17,17],[16,18,17,21],[18,21,25,21],[26,21,27,21],[27,9,32,14],[26,2,42,8],[22,11,23,12],[19,9,21,10],[19,11,19,14],[22,7,23,8],[22,4,23,6],[18,17,25,17],[18,18,25,19],[18,20,25,20],[22,13,23,14],[25,2,25,14],[33,9,33,14],[34,9,39,14],[40,9,40,14],[26,20,27,20],[26,9,26,14],[26,17,27,17],[26,18,27,19],[53,2,53,5],[53,6,53,9],[53,10,53,14],[41,9,41,14],[51,2,51,14],[52,2,52,5],[52,6,52,9],[52,10,52,14],[44,2,44,14],[54,2,54,5],[54,6,54,9],[54,10,54,14],[55,2,55,5],[55,6,55,9],[55,10,55,14],[56,2,56,5],[56,6,56,9],[56,10,56,14],[59,2,59,5],[59,6,59,9],[59,10,59,14],[57,2,57,5],[57,6,57,9],[57,10,57,14],[58,2,58,5],[58,6,58,9],[58,10,58,14]]}
[]
[null,"      REGRESAR"]
[]
[]
[null,null,null,null,"MACROPROCESO ESTRATÉGICO",null,null,null,null,null,null,null,"CÓDIGO: ESGr027"]
[null,null,null,null,"PROCESO GESTIÓN SISTEMAS INTEGRADOS",null,null,null,null,null,null,null,"VERSIÓN: 7"]
[null,null,null,null,"MATRIZ DE MEDICIÓN Y SEGUIMIENTO A LOS PROCESOS DE GESTIÓN",null,null,null,null,null,null,null,"VIGENCIA: 2020-03-20"]
[null,null,null,null,null,null,null,null,null,null,null,null,"PÁGINA: 1 de 1"]
[]
[null,null,"FICHA DE INDICADOR"]
[]
[null,null,"MACROPROCESO",null,null,null,null,null,"NOMBRE DEL INDICADOR"]
[null,null,"PROCESO GESTIÓN"]
[null,null,"RESPONSABLE DE MEDICIÓN"]
[]
[null,null,"1. COMPORTAMIENTO DE INDICADOR"]
[null,null,"CLASIFICACIÓN DE LA MEDICIÓN ",null,2,null,null,"TIPO DE INDICADOR",null,null,null,"META"]
[null,null,"FORMULA",null,null,null,null,null,null,null,null,"UNIDAD DE MEDIDA"]
[]
[null,null,"TENDENCIA",null,null,null,null,"NIVEL DE SEGREGACIÓN *",null,null,null,"ESCALA"]
[null,null,null,null,null,null,null,null,null,null,null,"Deficiente","Aceptable","Bueno","Excelente"]
[]
[null,null,"ORIGEN DE DATOS",null,null,null,null,"FRECUENCIA DE LA MEDICIÓN",null,"TRIMESTRAL",null,"FRECUENCIA DE RESULTADO",null,"ANUAL"]
[]
[]
[null,null,"RESULTADOS"]
[null,null,null,null,null,null,null,null,null,"ANÁLISIS DE DATOS\nLos datos indican un crecimiento en los acompañamientos entre el primer trimestre y \nel segundo trimestre de mas del 100%, por la contratación del personal de la oficina\nEn el tercer trimestre se muestra un decrecimiento con respecto al periodo anterior\npor las vacaciones a mitad de año, las personas se reintegraron entre julio y agosto."]
[]
[]
[]
[]
[]
[]
[null,null,null,null,null,null,null,null,null,"ACCIÓN FORMULADA\nReformular la meta para el próximo año dependiendo de los recursos asignados."]
[]
[]
[]
[]
[]
[]
[null,null,null,null,null,null,null,null,null,"RESPONSABLE "]
[null,null,null,null,null,null,null,null,null,{"$f":"E14","v":0}]
[]
[]
[null,null,"PERIODO DE EVALUACIÓN"]
[null,null,"MES",{"$f":"IF(J23=\"MENSUAL\",\"ENERO\",IF(J23=\"TRIMESTRAL\",\"MARZO\",IF(J23=\"SEMESTRAL\",\"JUNIO\",IF(J23=\"ANUAL\",YEAR(TODAY()),\"\"))))","v":"MARZO"},{"$f":"IF(J23=\"MENSUAL\",\"FEBRERO\",IF(J23=\"TRIMESTRAL\",\"JUNIO\",IF(J23=\"SEMESTRAL\",\"DICIEMBRE\",\"\")))","v":"JUNIO"},{"$f":"IF(J23=\"MENSUAL\",\"MARZO\",IF(J23=\"TRIMESTRAL\",\"SEPTIEMBRE\",\"\"))","v":"SEPTIEMBRE"},{"$f":"IF(J23=\"MENSUAL\",\"ABRIL\",IF(J23=\"TRIMESTRAL\",\"DICIEMBRE\",\"\"))","v":"DICIEMBRE"},{"$f":"IF(J23=\"MENSUAL\",\"MAYO\",\"\")","v":""},{"$f":"IF(J23=\"MENSUAL\",\"JUNIO\",\"\")","v":""},{"$f":"IF(J23=\"MENSUAL\",\"JULIO\",\"\")","v":""},{"$f":"IF(J23=\"MENSUAL\",\"AGOSTO\",\"\")","v":""},{"$f":"IF(J23=\"MENSUAL\",\"SEPTIEMBRE\",\"\")","v":""},{"$f":"IF(J23=\"MENSUAL\",\"OCTUBRE\",\"\")","v":""},{"$f":"IF(J23=\"MENSUAL\",\"NOVIEMBRE\",\"\")","v":""},{"$f":"IF(J23=\"MENSUAL\",\"DICIEMBRE\",\"\")","v":""}]
[null,null,{"$f":"G18","v":0}]
[null,null,{"$f":"G19","v":0}]
[null,null,"VALOR ",{"$f":"IFERROR(IF($E$17=1,D47/D48,IF($E$17=2,D47,\"\")),\"\")","v":0},{"$f":"IFERROR(IF($E$17=1,E47/E48,IF($E$17=2,E47,\"\")),\"\")","v":0},0,0,0,0,0,0,0,0,0,0]
[null,null,"META PONDERADA",{"$f":"IF(AND(N23=\"ANUAL\",J23=\"MENSUAL\"),N17/12,IF(AND(N23=\"ANUAL\",J23=\"TRIMESTRAL\"),N17/4,IF(AND(N23=\"ANUAL\",J23=\"SEMESTRAL\"),N17/2,IF(AND(N23=\"ANUAL\",J23=\"ANUAL\"),N17,IF(AND(N23=\"SEMESTRAL\",J23=\"MENSUAL\"),N17/6,IF(AND(N23=\"SEMESTRAL\",J23=\"TRIMESTRAL\"),N17/2,IF(AND(N23=\"SEMESTRAL\",J23=\"SEMESTRAL\"),N17,IF(AND(N23=\"SEMESTRAL\",J23=\"ANUAL\"),\"REVISAR FRECUENCIAS\",IF(AND(N23=\"TRIMESTRAL\",J23=\"MENSUAL\"),N17/3,IF(AND(N23=\"TRIMESTRAL\",J23=\"TRIMESTRAL\"),N17,IF(AND(N23=\"TRIMESTRAL\",J23=\"SEMESTRAL\"),\"REVISAR FRECUENCIAS\",IF(AND(N23=\"TRIMESTRAL\",J23=\"ANUAL\"),\"REVISAR FRECUENCIAS\",IF(AND(N23=\"MENSUAL\",J23=\"MENSUAL\"),N17,IF(AND(N23=\"MENSUAL\",J23=\"TRIMESTRAL\"),\"REVISAR FRECUENCIAS\",IF(AND(N23=\"MENSUAL\",J23=\"SEMESTRAL\"),\"REVISAR FRECUENCIAS\",IF(AND(N23=\"MENSUAL\",J23=\"ANUAL\"),\"REVISAR FRECUENCIAS\",\"\"))))))))))))))))","v":0},{"$f":"IF(AND(N23=\"ANUAL\",J23=\"MENSUAL\"),N17/12+D50,IF(AND(N23=\"ANUAL\",J23=\"TRIMESTRAL\"),N17/4+D50,IF(AND(N23=\"ANUAL\",J23=\"SEMESTRAL\"),N17/2+D50,IF(AND(N23=\"SEMESTRAL\",J23=\"MENSUAL\"),N17/6+D50,IF(AND(N23=\"SEMESTRAL\",J23=\"TRIMESTRAL\"),N17/2+D50,IF(AND(N23=\"SEMESTRAL\",J23=\"SEMESTRAL\"),N17,IF(AND(N23=\"TRIMESTRAL\",J23=\"MENSUAL\"),N17/3+D50,IF(AND(N23=\"TRIMESTRAL\",J23=\"TRIMESTRAL\"),N17,IF(AND(N23=\"MENSUAL\",J23=\"MENSUAL\"),N17,\"\")))))))))","v":0},{"$f":"IF(AND(N23=\"ANUAL\",J23=\"MENSUAL\"),N17/12+E50,IF(AND(N23=\"ANUAL\",J23=\"TRIMESTRAL\"),N17/4+E50,IF(AND(N23=\"SEMESTRAL\",J23=\"MENSUAL\"),N17/6+E50,IF(AND(N23=\"SEMESTRAL\",J23=\"TRIMESTRAL\"),N17/2,IF(AND(N23=\"TRIMESTRAL\",J23=\"MENSUAL\"),N17/3+E50,IF(AND(N23=\"TRIMESTRAL\",J23=\"TRIMESTRAL\"),N17,IF(AND(N23=\"MENSUAL\",J23=\"MENSUAL\"),N17,\"\")))))))","v":0},{"$f":"IF(AND(N23=\"ANUAL\",J23=\"MENSUAL\"),N17/12+F50,IF(AND(N23=\"ANUAL\",J23=\"TRIMESTRAL\"),N17/4+F50,IF(AND(N23=\"SEMESTRAL\",J23=\"MENSUAL\"),N17/6+F50,IF(AND(N23=\"SEMESTRAL\",J23=\"TRIMESTRAL\"),N17/2+F50,IF(AND(N23=\"TRIMESTRAL\",J23=\"MENSUAL\"),N17/3,IF(AND(N23=\"TRIMESTRAL\",J23=\"TRIMESTRAL\"),N17,IF(AND(N23=\"MENSUAL\",J23=\"MENSUAL\"),N17,\"\")))))))","v":0},{"$f":"IF(AND($N$23=\"ANUAL\",$J$23=\"MENSUAL\"),$N$17/12+G50,IF(AND(N23=\"SEMESTRAL\",J23=\"MENSUAL\"),N17/6+G50,IF(AND(N23=\"TRIMESTRAL\",J23=\"MENSUAL\"),N17/3+G50,IF(AND(N23=\"MENSUAL\",J23=\"MENSUAL\"),N17,\"\"))))","v":""},{"$f":"IF(AND($N$23=\"ANUAL\",$J$23=\"MENSUAL\"),$N$17/12+H50,IF(AND(N23=\"SEMESTRAL\",J23=\"MENSUAL\"),N17/6+H50,IF(AND(N23=\"TRIMESTRAL\",J23=\"MENSUAL\"),N17/3+H50,IF(AND(N23=\"MENSUAL\",J23=\"MENSUAL\"),N17,\"\"))))","v":""},{"$f":"IF(AND($N$23=\"ANUAL\",$J$23=\"MENSUAL\"),$N$17/12+I50,IF(AND(N23=\"SEMESTRAL\",J23=\"MENSUAL\"),N17/6,IF(AND(N23=\"TRIMESTRAL\",J23=\"MENSUAL\"),N17/3,IF(AND(N23=\"MENSUAL\",J23=\"MENSUAL\"),N17,\"\"))))","v":""},{"$f":"IF(AND($N$23=\"ANUAL\",$J$23=\"MENSUAL\"),$N$17/12+J50,IF(AND(N23=\"SEMESTRAL\",J23=\"MENSUAL\"),N17/6+J50,IF(AND(N23=\"TRIMESTRAL\",J23=\"MENSUAL\"),N17/3+J50,IF(AND(N23=\"MENSUAL\",J23=\"MENSUAL\"),N17,\"\"))))","v":""},{"$f":"IF(AND($N$23=\"ANUAL\",$J$23=\"MENSUAL\"),$N$17/12+K50,IF(AND(N23=\"SEMESTRAL\",J23=\"MENSUAL\"),N17/6+K50,IF(AND(N23=\"TRIMESTRAL\",J23=\"MENSUAL\"),N17/3+K50,IF(AND(N23=\"MENSUAL\",J23=\"MENSUAL\"),N17,\"\"))))","v":""},{"$f":"IF(AND($N$23=\"ANUAL\",$J$23=\"MENSUAL\"),$N$17/12+L50,IF(AND(N23=\"SEMESTRAL\",J23=\"MENSUAL\"),N17/6+L50,IF(AND(N23=\"TRIMESTRAL\",J23=\"MENSUAL\"),N17/3,IF(AND(N23=\"MENSUAL\",J23=\"MENSUAL\"),N17,\"\"))))","v":""},{"$f":"IF(AND($N$23=\"ANUAL\",$J$23=\"MENSUAL\"),$N$17/12+M50,IF(AND(N23=\"SEMESTRAL\",J23=\"MENSUAL\"),N17/6+M50,IF(AND(N23=\"TRIMESTRAL\",J23=\"MENSUAL\"),N17/3+M50,IF(AND(N23=\"MENSUAL\",J23=\"MENSUAL\"),N17,\"\"))))","v":""},{"$f":"IF(AND($N$23=\"ANUAL\",$J$23=\"MENSUAL\"),$N$17/12+N50,IF(AND(N23=\"SEMESTRAL\",J23=\"MENSUAL\"),N17/6+N50,IF(AND(N23=\"TRIMESTRAL\",J23=\"MENSUAL\"),N17/3+N50,IF(AND(N23=\"MENSUAL\",J23=\"MENSUAL\"),N17,\"\"))))","v":""}]
[]
[null,null,"NIVEL DE SEGREGACIÓN *"]
[null,null,"UNIDAD SEGREGADA (Ej. Facultad, Programa Académico, Área)",null,null,null,"RESULTADO",null,null,null,"ANALISIS DE DATOS SEGREGADO"]
[]
[]
[]
[]
[]
[]
[]
[]
[]
[]
[]
[]
[]
[]
[]
[]
[]
[]
[]
[null,null,null,null,null,null,"Estratégico",null,null,"Eficacia"]
[null,null,null,null,null,null,"Misional",null,null,"Eficiencia"]
[null,null,null,null,null,null,"Apoyo",null,null,"Acreditación"]
[null,null,null,null,null,null,"Seguimiento, Medición, Análisis y Evaluación",null,null,"Positiva"]
[null,null,null,null,null,null,"Direccionamiento Estratégico",null,null,"Negativa"]
[null,null,null,null,null,null,"Planeación Institucional",null,null,"Por Unidad Regional"]
[null,null,null,null,null,null,"Proyectos Especiales y Relaciones Interinstitucionales",null,null,"Por Facultad"]
[null,null,null,null,null,null,"Sistemas Integrados",null,null,"Por Programa Académico"]
[null,null,null,null,null,null,"Autoevaluación y Acreditación",null,null,"Por área"]
[null,null,null,null,null,null,"Comunicaciones",null,null,"Por Laboratorio"]
[null,null,null,null,null,null,"Formación y Aprendizaje",null,null,"Otros"]
[null,null,null,null,null,null,"Ciencia, Tecnología e Innovación",null,null,"No Aplica"]
[null,null,null,null,null,null,"Interacción Social Universitaria"]
[null,null,null,null,null,null,"Bienestar Universitario"]
[null,null,null,null,null,null,"Admisiones y Registro"]
[null,null,null,null,null,null,"Graduados"]
[null,null,null,null,null,null,"Dialogando con el Mundo"]
[null,null,null,null,null,null,"Talento Humano"]
[null,null,null,null,null,null,"Jurídica"]
[null,null,null,null,null,null,"Financiera"]
[null,null,null,null,null,null,"Sistemas y Tecnología"]
[null,null,null,null,null,null,"Bienes y Servicios"]
[null,null,null,null,null,null,"Documental"]
[null,null,null,null,null,null,"Apoyo Académico"]
[null,null,null,null,null,null,"Control Interno"]
[null,null,null,null,null,null,"Control Disciplinario"]
[null,null,null,null,null,null,"Servicio de Atención al Ciudadano"]

{"sheet":"AJU-4","index":2,"n_rows":94,"n_cols":15,"rows_kept":94,"cut":false,"hidden":false,"merged":[[56,2,56,5],[56,6,56,9],[56,10,56,14],[55,2,55,5],[55,6,55,9],[55,10,55,14],[54,2,54,5],[54,6,54,9],[54,10,54,14],[26,15,27,15],[27,9,32,14],[33,9,33,14],[34,9,39,14],[40,9,40,14],[44,2,44,14],[51,2,51,14],[52,2,52,5],[52,6,52,9],[52,10,52,14],[22,13,23,14],[23,2,23,3],[23,4,23,6],[25,2,25,14],[26,2,42,8],[26,9,26,14],[42,9,42,14],[22,2,22,3],[22,4,22,6],[22,7,23,8],[22,9,23,10],[22,11,23,12],[41,9,41,14],[16,13,16,14],[19,2,21,3],[19,4,21,6],[19,7,21,8],[19,9,21,10],[19,11,19,14],[13,2,13,3],[13,4,13,14],[14,2,14,14],[16,15,17,15],[17,2,18,3],[17,4,17,5],[17,6,17,10],[17,11,18,12],[17,13,18,14],[18,4,18,5],[18,6,18,10],[16,2,16,3],[16,4,16,6],[16,7,16,8],[16,9,16,10],[16,11,16,12],[11,4,11,7],[11,8,11,9],[11,10,11,14],[12,2,12,3],[12,4,12,14],[53,2,53,5],[53,6,53,9],[53,10,53,14],[1,1,3,2],[4,2,7,3],[4,4,4,11],[4,12,4,14],[5,4,5,11],[5,12,5,14],[6,4,7,11],[6,12,6,14],[7,12,7,14],[15,2,15,14],[8,2,8,14],[9,2,10,14],[11,2,11,3]]}
[]
[null,"      REGRESAR"]
[]
[]
[null,null,null,null,"MACROPROCESO ESTRATÉGICO",null,null,null,null,null,null,null,"CÓDIGO: ESGr027"]
[null,null,null,null,"PROCESO GESTIÓN SISTEMAS INTEGRADOS - CALIDAD",null,null,null,null,null,null,null,"VERSIÓN: 8"]
[null,null,null,null,"MATRIZ DE MEDICIÓN Y SEGUIMIENTO A LOS PROCESOS DE GESTIÓN",null,null,null,null,null,null,null,"VIGENCIA: 2023-07-28"]
[null,null,null,null,null,null,null,null,null,null,null,null,"PÁGINA: 1 de 4"]
[]
[null,null,"FICHA DE INDICADOR"]
[]
[null,null,"MACROPROCESO",null,"Apoyo",null,null,null,"NOMBRE DEL INDICADOR",null,"Oportunidad de respuesta en revisión minuta y garantía de contratación Directa"]
[null,null,"PROCESO GESTIÓN",null,"Jurídica"]
[null,null,"RESPONSABLE DE MEDICIÓN",null,"Director(a) Jurídica"]
[]
[null,null,"1. COMPORTAMIENTO DE INDICADOR"]
[null,null,"CLASIFICACIÓN DE LA MEDICIÓN",null,1,null,null,"TIPO DE INDICADOR",null,"Eficacia",null,"META",null,0.85]
[null,null,"FORMULA",null,"NUMERADOR",null,"Número de solicitudes atendidas oportunamente *100",null,null,null,null,"UNIDAD DE MEDIDA",null,"Porcentaje"]
[null,null,null,null,"DENOMINADOR",null,"Total de solicitudes cerradas"]
[null,null,"TENDENCIA",null,"Positiva",null,null,"NIVEL DE SEGREGACIÓN *",null,"Otros",null,"ESCALA"]
[null,null,null,null,null,null,null,null,null,null,null,"Deficiente","Aceptable","Bueno","Excelente"]
[null,null,null,null,null,null,null,null,null,null,null,"0% - 40,9%","41% - 60,9%","61% - 84,9% ",">=85%"]
[null,null,"ORIGEN DE DATOS NUMERADOR",null,"Data Integradoc",null,null,"FRECUENCIA DE LA MEDICIÓN",null,"SEMESTRAL",null,"FRECUENCIA DE RESULTADO",null,"SEMESTRAL"]
[null,null,"ORIGEN DE DATOS DENOMINADOR",null,"Data Integradoc"]
[]
[null,null,"RESULTADOS"]
[null,null,null,null,null,null,null,null,null,"ANÁLISIS DE DATOS"]
[null,null,null,null,null,null,null,null,null,"I SEMESTRE:\nSe recibieron 257 solicitudes de contratación directa de las cuales 192 fueron atendidas dentro del término de respuesta, con un resultado del 75% del 85% que es la meta establecida; a nivel de escala el resultado general para este semestre es \"BUENO\".  Respecto a la minuta se recibieron 178, de las cuales se respondieron 135 dentro del tiempo estipulado dando como resultado un 75.84%. Por otra parte, con respecto a la garantía de contratación directa se recibieron 79 solicitudes y se respondieron 57 dentro del término esperado cumpliendo con el 72.15%.\nII SEMESTRE:\nSe recibieron 663 solicitudes de contratación directa de las cuales 326 fueron atendidas dentro del término de respuesta, con un resultado del 49% que a nivel de escala el resultado general para este semestre es \"ACEPTABLE\".  Respecto a la minuta se recibieron 353, de las cuales se respondieron 205 dentro del tiempo estipulado dando como resultado un 58,07%. Por otra parte, con respecto a la garantía de contratación directa se recibieron 310 solicitudes y se respondieron 121 dentro del término esperado cumpliendo con el 39,03%."]
[]
[]
[]
[]
[]
[null,null,null,null,null,null,null,null,null,"ACCIÓN FORMULADA"]
[null,null,null,null,null,null,null,null,null,"I SEMESTRE:\nConcorde con el análisis de datos, se evidencia que la dirección jurídica no cumplió con la meta establecida, por lo tanto, establece como fórmula de mejora retroalimentar durante mesas de trabajo con base a las situaciones desfavorables presentadas en este semestre con el equipo de asesores de la dirección jurídica en aras de garantizar el cumplimiento de la meta y así mismo recordarles a los abogados el tiempo de respuesta según la circular 006 de 2022.\nII SEMESTRE:\nConforme al análisis de datos, se ha evidenciado que no se cumplió la meta propuesta. Por lo tanto, es necesario recordar a las áreas solicitantes y a los abogados (as) de la Dirección Jurídica el cumplimiento de la Circular 06 de 2022, con el fin de garantizar el desarrollo adecuado de las solicitudes dentro de los términos establecidos. Se hace especial énfasis en la importancia de remitir la documentación completa y en los plazos correspondientes, para fortalecer el proceso de correcciones y asegurar que se realicen de acuerdo con los tiempos estipulados.\nAdicionalmente, considerando la reciente transición de la Directora Jurídica, se reconoce que este cambio ha implicado un período de adaptación y comprensión de los procesos internos. En este sentido, se refuerza la necesidad de un esfuerzo conjunto entre el equipo de trabajo y la nueva dirección para asegurar la eficiencia en la gestión de las solicitudes."]
[]
[]
[]
[]
[]
[null,null,null,null,null,null,null,null,null,"RESPONSABLE "]
[null,null,null,null,null,null,null,null,null,{"$f":"E14","v":"Director(a) Jurídica"}]
[]
[]
[null,null,"PERIODO DE EVALUACIÓN"]
[null,null,"MES",{"$f":"IF(J23=\"MENSUAL\",\"ENERO\",IF(J23=\"TRIMESTRAL\",\"MARZO\",IF(J23=\"SEMESTRAL\",\"JUNIO\",IF(J23=\"ANUAL\",YEAR(TODAY()),\"\"))))","v":"JUNIO"},{"$f":"IF(J23=\"MENSUAL\",\"FEBRERO\",IF(J23=\"TRIMESTRAL\",\"JUNIO\",IF(J23=\"SEMESTRAL\",\"DICIEMBRE\",\"\")))","v":"DICIEMBRE"},{"$f":"IF(J23=\"MENSUAL\",\"MARZO\",IF(J23=\"TRIMESTRAL\",\"SEPTIEMBRE\",\"\"))","v":""},{"$f":"IF(J23=\"MENSUAL\",\"ABRIL\",IF(J23=\"TRIMESTRAL\",\"DICIEMBRE\",\"\"))","v":""},{"$f":"IF(J23=\"MENSUAL\",\"MAYO\",\"\")","v":""},{"$f":"IF(J23=\"MENSUAL\",\"JUNIO\",\"\")","v":""},{"$f":"IF(J23=\"MENSUAL\",\"JULIO\",\"\")","v":""},{"$f":"IF(J23=\"MENSUAL\",\"AGOSTO\",\"\")","v":""},{"$f":"IF(J23=\"MENSUAL\",\"SEPTIEMBRE\",\"\")","v":""},{"$f":"IF(J23=\"MENSUAL\",\"OCTUBRE\",\"\")","v":""},{"$f":"IF(J23=\"MENSUAL\",\"NOVIEMBRE\",\"\")","v":""},{"$f":"IF(J23=\"MENSUAL\",\"DICIEMBRE\",\"\")","v":""}]
[null,null,{"$f":"G18","v":"Número de solicitudes atendidas oportunamente *100"},192,326]
[null,null,{"$f":"G19","v":"Total de solicitudes cerradas"},257,663]
[null,null,"VALOR ",{"$f":"IFERROR(IF($E$17=1,D47/D48,IF($E$17=2,D47,\"\")),\"\")","v":0.74708171206225682},{"$f":"IFERROR(IF($E$17=1,E47/E48,IF($E$17=2,E47,\"\")),\"\")","v":0.49170437405731521},"","","","","","","","","",""]
[null,null,"META PONDERADA",{"$f":"IF(AND(N23=\"ANUAL\",J23=\"MENSUAL\"),N17/12,IF(AND(N23=\"ANUAL\",J23=\"TRIMESTRAL\"),N17/4,IF(AND(N23=\"ANUAL\",J23=\"SEMESTRAL\"),N17/2,IF(AND(N23=\"ANUAL\",J23=\"ANUAL\"),N17,IF(AND(N23=\"SEMESTRAL\",J23=\"MENSUAL\"),N17/6,IF(AND(N23=\"SEMESTRAL\",J23=\"TRIMESTRAL\"),N17/2,IF(AND(N23=\"SEMESTRAL\",J23=\"SEMESTRAL\"),N17,IF(AND(N23=\"SEMESTRAL\",J23=\"ANUAL\"),\"REVISAR FRECUENCIAS\",IF(AND(N23=\"TRIMESTRAL\",J23=\"MENSUAL\"),N17/3,IF(AND(N23=\"TRIMESTRAL\",J23=\"TRIMESTRAL\"),N17,IF(AND(N23=\"TRIMESTRAL\",J23=\"SEMESTRAL\"),\"REVISAR FRECUENCIAS\",IF(AND(N23=\"TRIMESTRAL\",J23=\"ANUAL\"),\"REVISAR FRECUENCIAS\",IF(AND(N23=\"MENSUAL\",J23=\"MENSUAL\"),N17,IF(AND(N23=\"MENSUAL\",J23=\"TRIMESTRAL\"),\"REVISAR FRECUENCIAS\",IF(AND(N23=\"MENSUAL\",J23=\"SEMESTRAL\"),\"REVISAR FRECUENCIAS\",IF(AND(N23=\"MENSUAL\",J23=\"ANUAL\"),\"REVISAR FRECUENCIAS\",\"\"))))))))))))))))","v":0.85},{"$f":"IF(AND(N23=\"ANUAL\",J23=\"MENSUAL\"),N17/12+D50,IF(AND(N23=\"ANUAL\",J23=\"TRIMESTRAL\"),N17/4+D50,IF(AND(N23=\"ANUAL\",J23=\"SEMESTRAL\"),N17/2+D50,IF(AND(N23=\"SEMESTRAL\",J23=\"MENSUAL\"),N17/6+D50,IF(AND(N23=\"SEMESTRAL\",J23=\"TRIMESTRAL\"),N17/2+D50,IF(AND(N23=\"SEMESTRAL\",J23=\"SEMESTRAL\"),N17,IF(AND(N23=\"TRIMESTRAL\",J23=\"MENSUAL\"),N17/3+D50,IF(AND(N23=\"TRIMESTRAL\",J23=\"TRIMESTRAL\"),N17,IF(AND(N23=\"MENSUAL\",J23=\"MENSUAL\"),N17,\"\")))))))))","v":0.85},{"$f":"IF(AND(N23=\"ANUAL\",J23=\"MENSUAL\"),N17/12+E50,IF(AND(N23=\"ANUAL\",J23=\"TRIMESTRAL\"),N17/4+E50,IF(AND(N23=\"SEMESTRAL\",J23=\"MENSUAL\"),N17/6+E50,IF(AND(N23=\"SEMESTRAL\",J23=\"TRIMESTRAL\"),N17/2,IF(AND(N23=\"TRIMESTRAL\",J23=\"MENSUAL\"),N17/3+E50,IF(AND(N23=\"TRIMESTRAL\",J23=\"TRIMESTRAL\"),N17,IF(AND(N23=\"MENSUAL\",J23=\"MENSUAL\"),N17,\"\")))))))","v":""},{"$f":"IF(AND(N23=\"ANUAL\",J23=\"MENSUAL\"),N17/12+F50,IF(AND(N23=\"ANUAL\",J23=\"TRIMESTRAL\"),N17/4+F50,IF(AND(N23=\"SEMESTRAL\",J23=\"MENSUAL\"),N17/6+F50,IF(AND(N23=\"SEMESTRAL\",J23=\"TRIMESTRAL\"),N17/2+F50,IF(AND(N23=\"TRIMESTRAL\",J23=\"MENSUAL\"),N17/3,IF(AND(N23=\"TRIMESTRAL\",J23=\"TRIMESTRAL\"),N17,IF(AND(N23=\"MENSUAL\",J23=\"MENSUAL\"),N17,\"\")))))))","v":""},{"$f":"IF(AND($N$23=\"ANUAL\",$J$23=\"MENSUAL\"),$N$17/12+G50,IF(AND(N23=\"SEMESTRAL\",J23=\"MENSUAL\"),N17/6+G50,IF(AND(N23=\"TRIMESTRAL\",J23=\"MENSUAL\"),N17/3+G50,IF(AND(N23=\"MENSUAL\",J23=\"MENSUAL\"),N17,\"\"))))","v":""},{"$f":"IF(AND($N$23=\"ANUAL\",$J$23=\"MENSUAL\"),$N$17/12+H50,IF(AND(N23=\"SEMESTRAL\",J23=\"MENSUAL\"),N17/6+H50,IF(AND(N23=\"TRIMESTRAL\",J23=\"MENSUAL\"),N17/3+H50,IF(AND(N23=\"MENSUAL\",J23=\"MENSUAL\"),N17,\"\"))))","v":""},{"$f":"IF(AND($N$23=\"ANUAL\",$J$23=\"MENSUAL\"),$N$17/12+I50,IF(AND(N23=\"SEMESTRAL\",J23=\"MENSUAL\"),N17/6,IF(AND(N23=\"TRIMESTRAL\",J23=\"MENSUAL\"),N17/3,IF(AND(N23=\"MENSUAL\",J23=\"MENSUAL\"),N17,\"\"))))","v":""},{"$f":"IF(AND($N$23=\"ANUAL\",$J$23=\"MENSUAL\"),$N$17/12+J50,IF(AND(N23=\"SEMESTRAL\",J23=\"MENSUAL\"),N17/6+J50,IF(AND(N23=\"TRIMESTRAL\",J23=\"MENSUAL\"),N17/3+J50,IF(AND(N23=\"MENSUAL\",J23=\"MENSUAL\"),N17,\"\"))))","v":""},{"$f":"IF(AND($N$23=\"ANUAL\",$J$23=\"MENSUAL\"),$N$17/12+K50,IF(AND(N23=\"SEMESTRAL\",J23=\"MENSUAL\"),N17/6+K50,IF(AND(N23=\"TRIMESTRAL\",J23=\"MENSUAL\"),N17/3+K50,IF(AND(N23=\"MENSUAL\",J23=\"MENSUAL\"),N17,\"\"))))","v":""},{"$f":"IF(AND($N$23=\"ANUAL\",$J$23=\"MENSUAL\"),$N$17/12+L50,IF(AND(N23=\"SEMESTRAL\",J23=\"MENSUAL\"),N17/6+L50,IF(AND(N23=\"TRIMESTRAL\",J23=\"MENSUAL\"),N17/3,IF(AND(N23=\"MENSUAL\",J23=\"MENSUAL\"),N17,\"\"))))","v":""},{"$f":"IF(AND($N$23=\"ANUAL\",$J$23=\"MENSUAL\"),$N$17/12+M50,IF(AND(N23=\"SEMESTRAL\",J23=\"MENSUAL\"),N17/6+M50,IF(AND(N23=\"TRIMESTRAL\",J23=\"MENSUAL\"),N17/3+M50,IF(AND(N23=\"MENSUAL\",J23=\"MENSUAL\"),N17,\"\"))))","v":""},{"$f":"IF(AND($N$23=\"ANUAL\",$J$23=\"MENSUAL\"),$N$17/12+N50,IF(AND(N23=\"SEMESTRAL\",J23=\"MENSUAL\"),N17/6+N50,IF(AND(N23=\"TRIMESTRAL\",J23=\"MENSUAL\"),N17/3+N50,IF(AND(N23=\"MENSUAL\",J23=\"MENSUAL\"),N17,\"\"))))","v":""}]
[]
[null,null,"NIVEL DE SEGREGACIÓN *"]
[null,null,"UNIDAD SEGREGADA (Ej. Facultad, Programa Académico, Área)",null,null,null,"RESULTADO",null,null,null,"ANALISIS DE DATOS SEGREGADO"]
[null,null,"MINUTA DE CONTRATACION DIRECTA",null,null,null,{"$f":"135/178","v":0.7584269662921348},null,null,null,"SE RECIBIERON 178 REQUERIMIENTOS EN CUANTO A LA MINUTA DE CONTRATACION DIRECTA,DE LOS CUALES 135 SE ATENDIERON DENTRO DE LOS TERMINOS DE RESPUESTA DEFINIDOS (I SEMESTRE)"]
[null,null,"GARANTIA DE CONTRATACION DIRECTA",null,null,null,{"$f":"57/79","v":0.72151898734177211},null,null,null,"SE RECIBIERON 79 REQUERIMIENTOS EN CUANTO A LA MINUTA DE CONTRATACION DIRECTA, DE LOS CUALES 57 SE ATENDIERON DENTRO DE LOS TERMINOS DE RESPUESTA DEFINIDOS (I SEMESTRE)"]
[null,null,"MINUTA DE CONTRATACION DIRECTA",null,null,null,{"$f":"205/353","v":0.58073654390934848},null,null,null,"SE RECIBIERON 353 REQUERIMIENTOS EN CUANTO A LA MINUTA DE CONTRATACION DIRECTA,DE LOS CUALES 205 SE ATENDIERON DENTRO DE LOS TERMINOS DE RESPUESTA DEFINIDOS (II SEMESTRE)"]
[null,null,"GARANTIA DE CONTRATACION DIRECTA",null,null,null,{"$f":"121/310","v":0.39032258064516129},null,null,null,"SE RECIBIERON 310 REQUERIMIENTOS EN CUANTO A LA GARANTIA DE CONTRATACION DIRECTA, DE LOS CUALES 121 SE ATENDIERON DENTRO DE LOS TERMINOS DE RESPUESTA DEFINIDOS (II SEMESTRE)"]
[]
[]
[]
[]
[]
[]
[]
[]
[]
[]
[null,null,null,null,null,null,"Estratégico",null,null,"Eficacia"]
[null,null,null,null,null,null,"Misional",null,null,"Eficiencia"]
[null,null,null,null,null,null,"Apoyo",null,null,"Acreditación"]
[null,null,null,null,null,null,"Seguimiento, Medición, Análisis y Evaluación",null,null,"Positiva"]
[null,null,null,null,null,null,"Direccionamiento Estratégico",null,null,"Negativa"]
[null,null,null,null,null,null,"Planeación Institucional",null,null,"Por Unidad Regional"]
[null,null,null,null,null,null,"Proyectos Especiales y Relaciones Interinstitucionales",null,null,"Por Facultad"]
[null,null,null,null,null,null,"Sistemas Integrados",null,null,"Por Programa Académico"]
[null,null,null,null,null,null,"Autoevaluación y Acreditación",null,null,"Por área"]
[null,null,null,null,null,null,"Comunicaciones",null,null,"Por Laboratorio"]
[null,null,null,null,null,null,"Formación y Aprendizaje",null,null,"Otros"]
[null,null,null,null,null,null,"Ciencia, Tecnología e Innovación",null,null,"No Aplica"]
[null,null,null,null,null,null,"Interacción Social Universitaria"]
[null,null,null,null,null,null,"Bienestar Universitario"]
[null,null,null,null,null,null,"Admisiones y Registro"]
[null,null,null,null,null,null,"Graduados"]
[null,null,null,null,null,null,"Dialogando con el Mundo"]
[null,null,null,null,null,null,"Talento Humano"]
[null,null,null,null,null,null,"Jurídica"]
[null,null,null,null,null,null,"Financiera"]
[null,null,null,null,null,null,"Sistemas y Tecnología"]
[null,null,null,null,null,null,"Bienes y Servicios"]
[null,null,null,null,null,null,"Documental"]
[null,null,null,null,null,null,"Apoyo Académico"]
[null,null,null,null,null,null,"Control Interno"]
[null,null,null,null,null,null,"Control Disciplinario"]
[null,null,null,null,null,null,"Servicio de Atención al Ciudadano"]

{"sheet":"AJU-5","index":3,"n_rows":94,"n_cols":15,"rows_kept":94,"cut":false,"hidden":false,"merged":[[56,2,56,5],[56,6,56,9],[56,10,56,14],[54,2,54,5],[55,2,55,5],[55,6,55,9],[55,10,55,14],[54,10,54,14],[54,6,54,9],[51,2,51,14],[52,2,52,5],[52,6,52,9],[52,10,52,14],[53,2,53,5],[53,6,53,9],[53,10,53,14],[26,15,27,15],[27,9,32,14],[33,9,33,14],[34,9,39,14],[40,9,40,14],[44,2,44,14],[25,2,25,14],[26,2,42,8],[26,9,26,14],[42,9,42,14],[41,9,41,14],[22,7,23,8],[14,2,14,14],[22,4,22,6],[23,4,23,6],[19,2,21,3],[19,7,21,8],[19,11,19,14],[19,9,21,10],[19,4,21,6],[22,13,23,14],[22,2,22,3],[23,2,23,3],[22,9,23,10],[22,11,23,12],[17,2,18,3],[17,4,17,5],[16,2,16,3],[16,11,16,12],[17,11,18,12],[17,6,17,10],[18,6,18,10],[16,9,16,10],[16,7,16,8],[16,4,16,6],[5,12,5,14],[6,4,7,11],[6,12,6,14],[7,12,7,14],[16,15,17,15],[16,13,16,14],[17,13,18,14],[18,4,18,5],[1,1,3,2],[4,2,7,3],[4,4,4,11],[15,2,15,14],[8,2,8,14],[9,2,10,14],[11,2,11,3],[11,4,11,7],[11,8,11,9],[11,10,11,14],[12,2,12,3],[12,4,12,14],[13,2,13,3],[13,4,13,14],[4,12,4,14],[5,4,5,11]]}
[]
[null,"      REGRESAR"]
[]
[]
[null,null,null,null,"MACROPROCESO ESTRATÉGICO",null,null,null,null,null,null,null,"CÓDIGO: ESGr027"]
[null,null,null,null,"PROCESO GESTIÓN SISTEMAS INTEGRADOS - CALIDAD",null,null,null,null,null,null,null,"VERSIÓN: 8"]
[null,null,null,null,"MATRIZ DE MEDICIÓN Y SEGUIMIENTO A LOS PROCESOS DE GESTIÓN",null,null,null,null,null,null,null,"VIGENCIA: 2023-07-28"]
[null,null,null,null,null,null,null,null,null,null,null,null,"PÁGINA: 1 de 4"]
[]
[null,null,"FICHA DE INDICADOR"]
[]
[null,null,"MACROPROCESO",null,"Apoyo",null,null,null,"NOMBRE DEL INDICADOR",null,"Oportunidad de respuesta en revisión de términos de referencia y minuta de contratación Publico-Privada"]
[null,null,"PROCESO GESTIÓN",null,"Jurídica"]
[null,null,"RESPONSABLE DE MEDICIÓN",null,"Director(a) Jurídica"]
[]
[null,null,"1. COMPORTAMIENTO DE INDICADOR"]
[null,null,"CLASIFICACIÓN DE LA MEDICIÓN",null,1,null,null,"TIPO DE INDICADOR",null,"Eficacia",null,"META",null,0.85]
[null,null,"FORMULA",null,"NUMERADOR",null,"Número de solicitudes atendidas oportunamente * 100",null,null,null,null,"UNIDAD DE MEDIDA",null,"Porcentaje"]
[null,null,null,null,"DENOMINADOR",null,"Total de solicitudes cerradas"]
[null,null,"TENDENCIA",null,"Positiva",null,null,"NIVEL DE SEGREGACIÓN *",null,"Otros",null,"ESCALA"]
[null,null,null,null,null,null,null,null,null,null,null,"Deficiente","Aceptable","Bueno","Excelente"]
[null,null,null,null,null,null,null,null,null,null,null,"0% - 45,9%","46% - 65,9%","66% - 84,9% ",">=85%"]
[null,null,"ORIGEN DE DATOS NUMERADOR",null,"Data Integradoc",null,null,"FRECUENCIA DE LA MEDICIÓN",null,"SEMESTRAL",null,"FRECUENCIA DE RESULTADO",null,"SEMESTRAL"]
[null,null,"ORIGEN DE DATOS DENOMINADOR",null,"Data Integradoc"]
[]
[null,null,"RESULTADOS"]
[null,null,null,null,null,null,null,null,null,"ANÁLISIS DE DATOS"]
[null,null,null,null,null,null,null,null,null,"I SEMESTRE:\nConcorde con el análisis de datos, se evidencia que no se cumplió con la meta establecida, quedando en un 83% de 85% dentro de la escala de un resultado \"BUENO\". Se recibieron 20 solicitudes con respecto a la revisión de términos de referencia de invitación Publico-Privada de los cuales 17 se respondieron dentro del término estipulado, dando un resultado de un 85% de cumplimiento. Por otra parte, con respecto a la revisión y aprobación de la minuta, se revisaron 10 requerimientos de los cuales 8 se cumplieron dentro del término, dando el cumplimiento al 80%.\nII SEMESTRE:\nConcorde con el análisis de datos, se evidencia que  se cumplió con la meta establecida, quedando en un 46% de 65,9% dentro de la escala de un resultado \"ACEPTABLE\". Se recibieron 38 solicitudes con respecto a la revisión de términos de referencia de invitación Publico-Privada de los cuales 25 se respondieron dentro del término estipulado, dando un resultado de un 66% de cumplimiento. Por otra parte, con respecto a la revisión y aprobación de la minuta, se revisaron 31 requerimientos de los cuales 20 se cumplieron dentro del término, dando el cumplimiento al 65%."]
[]
[]
[]
[]
[]
[null,null,null,null,null,null,null,null,null,"ACCIÓN FORMULADA"]
[null,null,null,null,null,null,null,null,null,"I SEMESTRE:\nTeniendo en cuenta que no se cumplió con la meta establecida, la dirección jurídica establece como estrategias para el mejoramiento en la medición del indicador para el siguiente semestre llevar a cabo mesas de trabajo en las cuales se expondrán las situaciones presentadas con tiempos extemporáneos para así solicitar el apoyo de las otras áreas y poder cumplir con la meta establecida y lo estipulado en la circular 006 de 2022.\nII SEMESTRE:\nConforme al análisis de datos, se ha evidenciado que no se cumplió la meta propuesta. Por lo tanto, es necesario recordar a las áreas solicitantes y a los abogados (as) de la Dirección Jurídica el cumplimiento de la Circular 08 de 2021, con el fin de garantizar el desarrollo adecuado de las solicitudes dentro de los términos establecidos. Se hace especial énfasis en la importancia de remitir la documentación completa y en los plazos correspondientes, para fortalecer el proceso de correcciones y asegurar que se realicen de acuerdo con los tiempos estipulados.\nAdicionalmente, considerando la reciente transición de la Directora Jurídica, se reconoce que este cambio ha implicado un período de adaptación y comprensión de los procesos internos. En este sentido, se refuerza la necesidad de un esfuerzo conjunto entre el equipo de trabajo y la nueva dirección para asegurar la eficiencia en la gestión de las solicitudes."]
[]
[]
[]
[]
[]
[null,null,null,null,null,null,null,null,null,"RESPONSABLE "]
[null,null,null,null,null,null,null,null,null,{"$f":"E14","v":"Director(a) Jurídica"}]
[]
[]
[null,null,"PERIODO DE EVALUACIÓN"]
[null,null,"MES",{"$f":"IF(J23=\"MENSUAL\",\"ENERO\",IF(J23=\"TRIMESTRAL\",\"MARZO\",IF(J23=\"SEMESTRAL\",\"JUNIO\",IF(J23=\"ANUAL\",YEAR(TODAY()),\"\"))))","v":"JUNIO"},{"$f":"IF(J23=\"MENSUAL\",\"FEBRERO\",IF(J23=\"TRIMESTRAL\",\"JUNIO\",IF(J23=\"SEMESTRAL\",\"DICIEMBRE\",\"\")))","v":"DICIEMBRE"},{"$f":"IF(J23=\"MENSUAL\",\"MARZO\",IF(J23=\"TRIMESTRAL\",\"SEPTIEMBRE\",\"\"))","v":""},{"$f":"IF(J23=\"MENSUAL\",\"ABRIL\",IF(J23=\"TRIMESTRAL\",\"DICIEMBRE\",\"\"))","v":""},{"$f":"IF(J23=\"MENSUAL\",\"MAYO\",\"\")","v":""},{"$f":"IF(J23=\"MENSUAL\",\"JUNIO\",\"\")","v":""},{"$f":"IF(J23=\"MENSUAL\",\"JULIO\",\"\")","v":""},{"$f":"IF(J23=\"MENSUAL\",\"AGOSTO\",\"\")","v":""},{"$f":"IF(J23=\"MENSUAL\",\"SEPTIEMBRE\",\"\")","v":""},{"$f":"IF(J23=\"MENSUAL\",\"OCTUBRE\",\"\")","v":""},{"$f":"IF(J23=\"MENSUAL\",\"NOVIEMBRE\",\"\")","v":""},{"$f":"IF(J23=\"MENSUAL\",\"DICIEMBRE\",\"\")","v":""}]
[null,null,{"$f":"G18","v":"Número de solicitudes atendidas oportunamente * 100"},25,45]
[null,null,{"$f":"G19","v":"Total de solicitudes cerradas"},30,69]
[null,null,"VALOR ",{"$f":"IFERROR(IF($E$17=1,D47/D48,IF($E$17=2,D47,\"\")),\"\")","v":0.83333333333333337},{"$f":"IFERROR(IF($E$17=1,E47/E48,IF($E$17=2,E47,\"\")),\"\")","v":0.65217391304347827},{"$f":"IFERROR(IF($E$17=1,F47/F48,IF($E$17=2,F47,\"\")),\"\")","v":""},"","","","","","","","",""]
[null,null,"META PONDERADA",{"$f":"IF(AND(N23=\"ANUAL\",J23=\"MENSUAL\"),N17/12,IF(AND(N23=\"ANUAL\",J23=\"TRIMESTRAL\"),N17/4,IF(AND(N23=\"ANUAL\",J23=\"SEMESTRAL\"),N17/2,IF(AND(N23=\"ANUAL\",J23=\"ANUAL\"),N17,IF(AND(N23=\"SEMESTRAL\",J23=\"MENSUAL\"),N17/6,IF(AND(N23=\"SEMESTRAL\",J23=\"TRIMESTRAL\"),N17/2,IF(AND(N23=\"SEMESTRAL\",J23=\"SEMESTRAL\"),N17,IF(AND(N23=\"SEMESTRAL\",J23=\"ANUAL\"),\"REVISAR FRECUENCIAS\",IF(AND(N23=\"TRIMESTRAL\",J23=\"MENSUAL\"),N17/3,IF(AND(N23=\"TRIMESTRAL\",J23=\"TRIMESTRAL\"),N17,IF(AND(N23=\"TRIMESTRAL\",J23=\"SEMESTRAL\"),\"REVISAR FRECUENCIAS\",IF(AND(N23=\"TRIMESTRAL\",J23=\"ANUAL\"),\"REVISAR FRECUENCIAS\",IF(AND(N23=\"MENSUAL\",J23=\"MENSUAL\"),N17,IF(AND(N23=\"MENSUAL\",J23=\"TRIMESTRAL\"),\"REVISAR FRECUENCIAS\",IF(AND(N23=\"MENSUAL\",J23=\"SEMESTRAL\"),\"REVISAR FRECUENCIAS\",IF(AND(N23=\"MENSUAL\",J23=\"ANUAL\"),\"REVISAR FRECUENCIAS\",\"\"))))))))))))))))","v":0.85},{"$f":"IF(AND(N23=\"ANUAL\",J23=\"MENSUAL\"),N17/12+D50,IF(AND(N23=\"ANUAL\",J23=\"TRIMESTRAL\"),N17/4+D50,IF(AND(N23=\"ANUAL\",J23=\"SEMESTRAL\"),N17/2+D50,IF(AND(N23=\"SEMESTRAL\",J23=\"MENSUAL\"),N17/6+D50,IF(AND(N23=\"SEMESTRAL\",J23=\"TRIMESTRAL\"),N17/2+D50,IF(AND(N23=\"SEMESTRAL\",J23=\"SEMESTRAL\"),N17,IF(AND(N23=\"TRIMESTRAL\",J23=\"MENSUAL\"),N17/3+D50,IF(AND(N23=\"TRIMESTRAL\",J23=\"TRIMESTRAL\"),N17,IF(AND(N23=\"MENSUAL\",J23=\"MENSUAL\"),N17,\"\")))))))))","v":0.85},{"$f":"IF(AND(N23=\"ANUAL\",J23=\"MENSUAL\"),N17/12+E50,IF(AND(N23=\"ANUAL\",J23=\"TRIMESTRAL\"),N17/4+E50,IF(AND(N23=\"SEMESTRAL\",J23=\"MENSUAL\"),N17/6+E50,IF(AND(N23=\"SEMESTRAL\",J23=\"TRIMESTRAL\"),N17/2,IF(AND(N23=\"TRIMESTRAL\",J23=\"MENSUAL\"),N17/3+E50,IF(AND(N23=\"TRIMESTRAL\",J23=\"TRIMESTRAL\"),N17,IF(AND(N23=\"MENSUAL\",J23=\"MENSUAL\"),N17,\"\")))))))","v":""},{"$f":"IF(AND(N23=\"ANUAL\",J23=\"MENSUAL\"),N17/12+F50,IF(AND(N23=\"ANUAL\",J23=\"TRIMESTRAL\"),N17/4+F50,IF(AND(N23=\"SEMESTRAL\",J23=\"MENSUAL\"),N17/6+F50,IF(AND(N23=\"SEMESTRAL\",J23=\"TRIMESTRAL\"),N17/2+F50,IF(AND(N23=\"TRIMESTRAL\",J23=\"MENSUAL\"),N17/3,IF(AND(N23=\"TRIMESTRAL\",J23=\"TRIMESTRAL\"),N17,IF(AND(N23=\"MENSUAL\",J23=\"MENSUAL\"),N17,\"\")))))))","v":""},{"$f":"IF(AND($N$23=\"ANUAL\",$J$23=\"MENSUAL\"),$N$17/12+G50,IF(AND(N23=\"SEMESTRAL\",J23=\"MENSUAL\"),N17/6+G50,IF(AND(N23=\"TRIMESTRAL\",J23=\"MENSUAL\"),N17/3+G50,IF(AND(N23=\"MENSUAL\",J23=\"MENSUAL\"),N17,\"\"))))","v":""},{"$f":"IF(AND($N$23=\"ANUAL\",$J$23=\"MENSUAL\"),$N$17/12+H50,IF(AND(N23=\"SEMESTRAL\",J23=\"MENSUAL\"),N17/6+H50,IF(AND(N23=\"TRIMESTRAL\",J23=\"MENSUAL\"),N17/3+H50,IF(AND(N23=\"MENSUAL\",J23=\"MENSUAL\"),N17,\"\"))))","v":""},{"$f":"IF(AND($N$23=\"ANUAL\",$J$23=\"MENSUAL\"),$N$17/12+I50,IF(AND(N23=\"SEMESTRAL\",J23=\"MENSUAL\"),N17/6,IF(AND(N23=\"TRIMESTRAL\",J23=\"MENSUAL\"),N17/3,IF(AND(N23=\"MENSUAL\",J23=\"MENSUAL\"),N17,\"\"))))","v":""},{"$f":"IF(AND($N$23=\"ANUAL\",$J$23=\"MENSUAL\"),$N$17/12+J50,IF(AND(N23=\"SEMESTRAL\",J23=\"MENSUAL\"),N17/6+J50,IF(AND(N23=\"TRIMESTRAL\",J23=\"MENSUAL\"),N17/3+J50,IF(AND(N23=\"MENSUAL\",J23=\"MENSUAL\"),N17,\"\"))))","v":""},{"$f":"IF(AND($N$23=\"ANUAL\",$J$23=\"MENSUAL\"),$N$17/12+K50,IF(AND(N23=\"SEMESTRAL\",J23=\"MENSUAL\"),N17/6+K50,IF(AND(N23=\"TRIMESTRAL\",J23=\"MENSUAL\"),N17/3+K50,IF(AND(N23=\"MENSUAL\",J23=\"MENSUAL\"),N17,\"\"))))","v":""},{"$f":"IF(AND($N$23=\"ANUAL\",$J$23=\"MENSUAL\"),$N$17/12+L50,IF(AND(N23=\"SEMESTRAL\",J23=\"MENSUAL\"),N17/6+L50,IF(AND(N23=\"TRIMESTRAL\",J23=\"MENSUAL\"),N17/3,IF(AND(N23=\"MENSUAL\",J23=\"MENSUAL\"),N17,\"\"))))","v":""},{"$f":"IF(AND($N$23=\"ANUAL\",$J$23=\"MENSUAL\"),$N$17/12+M50,IF(AND(N23=\"SEMESTRAL\",J23=\"MENSUAL\"),N17/6+M50,IF(AND(N23=\"TRIMESTRAL\",J23=\"MENSUAL\"),N17/3+M50,IF(AND(N23=\"MENSUAL\",J23=\"MENSUAL\"),N17,\"\"))))","v":""},{"$f":"IF(AND($N$23=\"ANUAL\",$J$23=\"MENSUAL\"),$N$17/12+N50,IF(AND(N23=\"SEMESTRAL\",J23=\"MENSUAL\"),N17/6+N50,IF(AND(N23=\"TRIMESTRAL\",J23=\"MENSUAL\"),N17/3+N50,IF(AND(N23=\"MENSUAL\",J23=\"MENSUAL\"),N17,\"\"))))","v":""}]
[]
[null,null,"NIVEL DE SEGREGACIÓN *"]
[null,null,"UNIDAD SEGREGADA (Ej. Facultad, Programa Académico, Área)",null,null,null,"RESULTADO",null,null,null,"ANALISIS DE DATOS SEGREGADO"]
[null,null,"REVISAR TÉRMINOS DE REFERENCIA INVITACIÓN PÚBLICA / PRIVADA",null,null,null,{"$f":"17/20","v":0.85},null,null,null,"SE RECIBIERON 20 REQUERIMIENTOS EN CUANTO A REVISAR TÉRMINOS DE REFERENCIA INVITACIÓN PÚBLICA / PRIVADA, DE LOS CUALES 17 SE ATENDIERON DENTRO DE LOS TERMINOS DE RESPUESTA DEFINIDOS (I SEMESTRE)"]
[null,null,"REVISION DE LA MINUTA (INVITACION PUBLICA / PRIVADA)",null,null,null,{"$f":"8/10","v":0.8},null,null,null,"SE RECIBIERON 10 REQUERIMIENTOS EN CUANTO REVISION DE LA MINUTA (INVITACION PUBLICA / PRIVADA) DE LOS CUALES 8 SE ATENDIERON DENTRO DE LOS TERMINOS DE RESPUESTA DEFINIDOS (I SEMESTRE)"]
[null,null,"REVISAR TÉRMINOS DE REFERENCIA INVITACIÓN PÚBLICA / PRIVADA",null,null,null,{"$f":"25/38","v":0.65789473684210531},null,null,null,"SE RECIBIERON 38 REQUERIMIENTOS EN CUANTO A  TÉRMINOS DE REFERENCIA INVITACIÓN PÚBLICA / PRIVADA, DE LOS CUALES 25 SE ATENDIERON DENTRO DE LOS TERMINOS DE RESPUESTA DEFINIDOS (II SEMESTRE)"]
[null,null,"REVISION DE LA MINUTA (INVITACION PUBLICA / PRIVADA)",null,null,null,{"$f":"20/31","v":0.64516129032258063},null,null,null,"SE RECIBIERON 31 REQUERIMIENTOS EN CUANTO REVISION DE LA MINUTA (INVITACION PUBLICA / PRIVADA) DE LOS CUALES 20 SE ATENDIERON DENTRO DE LOS TERMINOS DE RESPUESTA DEFINIDOS (II SEMESTRE)"]
[]
[]
[]
[]
[]
[]
[]
[]
[]
[]
[null,null,null,null,null,null,"Estratégico",null,null,"Eficacia"]
[null,null,null,null,null,null,"Misional",null,null,"Eficiencia"]
[null,null,null,null,null,null,"Apoyo",null,null,"Acreditación"]
[null,null,null,null,null,null,"Seguimiento, Medición, Análisis y Evaluación",null,null,"Positiva"]
[null,null,null,null,null,null,"Direccionamiento Estratégico",null,null,"Negativa"]
[null,null,null,null,null,null,"Planeación Institucional",null,null,"Por Unidad Regional"]
[null,null,null,null,null,null,"Proyectos Especiales y Relaciones Interinstitucionales",null,null,"Por Facultad"]
[null,null,null,null,null,null,"Sistemas Integrados",null,null,"Por Programa Académico"]
[null,null,null,null,null,null,"Autoevaluación y Acreditación",null,null,"Por área"]
[null,null,null,null,null,null,"Comunicaciones",null,null,"Por Laboratorio"]
[null,null,null,null,null,null,"Formación y Aprendizaje",null,null,"Otros"]
[null,null,null,null,null,null,"Ciencia, Tecnología e Innovación",null,null,"No Aplica"]
[null,null,null,null,null,null,"Interacción Social Universitaria"]
[null,null,null,null,null,null,"Bienestar Universitario"]
[null,null,null,null,null,null,"Admisiones y Registro"]
[null,null,null,null,null,null,"Graduados"]
[null,null,null,null,null,null,"Dialogando con el Mundo"]
[null,null,null,null,null,null,"Talento Humano"]
[null,null,null,null,null,null,"Jurídica"]
[null,null,null,null,null,null,"Financiera"]
[null,null,null,null,null,null,"Sistemas y Tecnología"]
[null,null,null,null,null,null,"Bienes y Servicios"]
[null,null,null,null,null,null,"Documental"]
[null,null,null,null,null,null,"Apoyo Académico"]
[null,null,null,null,null,null,"Control Interno"]
[null,null,null,null,null,null,"Control Disciplinario"]
[null,null,null,null,null,null,"Servicio de Atención al Ciudadano"]

{"sheet":"AJU-6","index":4,"n_rows":93,"n_cols":15,"rows_kept":93,"cut":false,"hidden":false,"merged":[[54,2,54,5],[54,6,54,9],[54,10,54,14],[44,2,44,14],[51,2,51,14],[52,2,52,5],[52,6,52,9],[52,10,52,14],[53,2,53,5],[53,6,53,9],[53,10,53,14],[26,15,27,15],[27,9,32,14],[33,9,33,14],[34,9,39,14],[40,9,40,14],[41,9,41,14],[22,13,23,14],[23,2,23,3],[23,4,23,6],[25,2,25,14],[26,2,42,8],[26,9,26,14],[42,9,42,14],[22,2,22,3],[22,4,22,6],[22,7,23,8],[22,9,23,10],[22,11,23,12],[19,2,21,3],[19,4,21,6],[19,7,21,8],[19,9,21,10],[19,11,19,14],[16,15,17,15],[17,2,18,3],[17,4,17,5],[17,6,17,10],[17,11,18,12],[17,13,18,14],[18,4,18,5],[18,6,18,10],[16,2,16,3],[16,4,16,6],[16,7,16,8],[16,9,16,10],[16,11,16,12],[16,13,16,14],[15,2,15,14],[8,2,8,14],[9,2,10,14],[11,2,11,3],[11,4,11,7],[11,8,11,9],[11,10,11,14],[12,2,12,3],[12,4,12,14],[13,2,13,3],[13,4,13,14],[14,2,14,14],[1,1,3,2],[4,2,7,3],[4,4,4,11],[4,12,4,14],[5,4,5,11],[5,12,5,14],[6,4,7,11],[6,12,6,14],[7,12,7,14]]}
[]
[null,"      REGRESAR"]
[]
[]
[null,null,null,null,"MACROPROCESO ESTRATÉGICO",null,null,null,null,null,null,null,"CÓDIGO: ESGr027"]
[null,null,null,null,"PROCESO GESTIÓN SISTEMAS INTEGRADOS - CALIDAD",null,null,null,null,null,null,null,"VERSIÓN: 8"]
[null,null,null,null,"MATRIZ DE MEDICIÓN Y SEGUIMIENTO A LOS PROCESOS DE GESTIÓN",null,null,null,null,null,null,null,"VIGENCIA: 2023-07-28"]
[null,null,null,null,null,null,null,null,null,null,null,null,"PÁGINA: 1 de 4"]
[]
[null,null,"FICHA DE INDICADOR"]
[]
[null,null,"MACROPROCESO",null,"Apoyo",null,null,null,"NOMBRE DEL INDICADOR",null,"Proceso jurídico en recuperación de cartera"]
[null,null,"PROCESO GESTIÓN",null,"Jurídica"]
[null,null,"RESPONSABLE DE MEDICIÓN",null,"Director(a) Jurídica"]
[]
[null,null,"1. COMPORTAMIENTO DE INDICADOR"]
[null,null,"CLASIFICACIÓN DE LA MEDICIÓN",null,1,null,null,"TIPO DE INDICADOR",null,"Eficiencia",null,"META",null,0.8]
[null,null,"FORMULA",null,"NUMERADOR",null," Casos gestionados y con seguimiento*100",null,null,null,null,"UNIDAD DE MEDIDA",null,"Porcentaje"]
[null,null,null,null,"DENOMINADOR",null,"Total de casos en/para cobro jurídico (a satisfacción de criterios)"]
[null,null,"TENDENCIA",null,"Positiva",null,null,"NIVEL DE SEGREGACIÓN *",null,"No Aplica",null,"ESCALA"]
[null,null,null,null,null,null,null,null,null,null,null,"Deficiente","Aceptable","Bueno","Excelente"]
[null,null,null,null,null,null,null,null,null,null,null,"0% - 39,9%","40% - 59,9%","60% - 79,9% ",">=80%"]
[null,null,"ORIGEN DE DATOS NUMERADOR",null,"Documento en Excel - AJUF008",null,null,"FRECUENCIA DE LA MEDICIÓN",null,"SEMESTRAL",null,"FRECUENCIA DE RESULTADO",null,"SEMESTRAL"]
[null,null,"ORIGEN DE DATOS DENOMINADOR",null,"Documento en Excel - AJUF008"]
[]
[null,null,"RESULTADOS"]
[null,null,null,null,null,null,null,null,null,"ANÁLISIS DE DATOS"]
[null,null,null,null,null,null,null,null,null,"I SEMESTRE:\nSEGÚN LOS DATOS ANALIZADOS EXISTEN ACTUALMENTE 23 CASOS PARA COBRO JURIDICO, AL TOTAL DE CASOS SE LES HA REALIZADO  EL SEGUIMIENTO CONTINUO A LOS PROCESOS TAL COMO LO INDICA LA DATA, GENERANDO UN CUMPLIMIENTO DEL 100% SUPERANDO ASI LA META PONDERADA (80%).\nII SEMESTRE:\nSEGÚN LOS DATOS ANALIZADOS EXISTEN ACTUALMENTE 22 CASOS PARA COBRO JURIDICO, DEBIDO QUE PARA ESTE SEGUNO SEMESTRE SE RECUADO EL PAGO DE UNA SANCION DE UN PROCESO EJECUTIVO.  AL TOTAL DE CASOS SE LES HA REALIZADO  EL SEGUIMIENTO CONTINUO A LOS PROCESOS TAL COMO LO INDICA LA DATA, GENERANDO UN CUMPLIMIENTO DEL 100% SUPERANDO ASI LA META PONDERADA (80%)."]
[]
[]
[]
[]
[]
[null,null,null,null,null,null,null,null,null,"ACCIÓN FORMULADA"]
[null,null,null,null,null,null,null,null,null,"I SEMESTRE:\nSEGÚN LOS RESULTADOS OBTENIDOS ESTE SEMESTRE (100%), SE LES SEGUIRÁ RECORDANDO A LOS ABOGADOS ENCARGADOS DE LOS PROCESOS EN MENCION; DAR LA DEBIDA CELERIDAD Y SEGUIMIENTO A LOS PROCESOS CON COBRO JURIDICO EN ARAS DE FORTALECER Y DAR CUMPLIMIENTO A ESTE INDICADOR. \nII SEMESTRE:\nSEGÚN LOS RESULTADOS OBTENIDOS ESTE SEMESTRE (100%), SE SOLICITARÁ A LOS ASESORES JURIDICOS ENCARGADOS EL SEGUIMIENTO A ESTOS PROCESOS Y DAR LA DEBIDA CELERIDAD Y SEGUIMIENTO A LOS PROCESOS CON COBRO JURIDICO EN ARAS DE FORTALECER Y DAR CUMPLIMIENTO A ESTE INDICADOR."]
[]
[]
[]
[]
[]
[null,null,null,null,null,null,null,null,null,"RESPONSABLE "]
[null,null,null,null,null,null,null,null,null,{"$f":"E14","v":"Director(a) Jurídica"}]
[]
[]
[null,null,"PERIODO DE EVALUACIÓN"]
[null,null,"MES",{"$f":"IF(J23=\"MENSUAL\",\"ENERO\",IF(J23=\"TRIMESTRAL\",\"MARZO\",IF(J23=\"SEMESTRAL\",\"JUNIO\",IF(J23=\"ANUAL\",YEAR(TODAY()),\"\"))))","v":"JUNIO"},{"$f":"IF(J23=\"MENSUAL\",\"FEBRERO\",IF(J23=\"TRIMESTRAL\",\"JUNIO\",IF(J23=\"SEMESTRAL\",\"DICIEMBRE\",\"\")))","v":"DICIEMBRE"},{"$f":"IF(J23=\"MENSUAL\",\"MARZO\",IF(J23=\"TRIMESTRAL\",\"SEPTIEMBRE\",\"\"))","v":""},{"$f":"IF(J23=\"MENSUAL\",\"ABRIL\",IF(J23=\"TRIMESTRAL\",\"DICIEMBRE\",\"\"))","v":""},{"$f":"IF(J23=\"MENSUAL\",\"MAYO\",\"\")","v":""},{"$f":"IF(J23=\"MENSUAL\",\"JUNIO\",\"\")","v":""},{"$f":"IF(J23=\"MENSUAL\",\"JULIO\",\"\")","v":""},{"$f":"IF(J23=\"MENSUAL\",\"AGOSTO\",\"\")","v":""},{"$f":"IF(J23=\"MENSUAL\",\"SEPTIEMBRE\",\"\")","v":""},{"$f":"IF(J23=\"MENSUAL\",\"OCTUBRE\",\"\")","v":""},{"$f":"IF(J23=\"MENSUAL\",\"NOVIEMBRE\",\"\")","v":""},{"$f":"IF(J23=\"MENSUAL\",\"DICIEMBRE\",\"\")","v":""}]
[null,null,{"$f":"G18","v":" Casos gestionados y con seguimiento*100"},23,22]
[null,null,{"$f":"G19","v":"Total de casos en/para cobro jurídico (a satisfacción de criterios)"},23,22]
[null,null,"VALOR ",{"$f":"D47/D48","v":1},{"$f":"E47/E48","v":1},{"$f":"IFERROR(IF($E$17=1,F47/F48,IF($E$17=2,F47,\"\")),\"\")","v":""},"","","","","","","","",""]
[null,null,"META PONDERADA",{"$f":"IF(AND(N23=\"ANUAL\",J23=\"MENSUAL\"),N17/12,IF(AND(N23=\"ANUAL\",J23=\"TRIMESTRAL\"),N17/4,IF(AND(N23=\"ANUAL\",J23=\"SEMESTRAL\"),N17/2,IF(AND(N23=\"ANUAL\",J23=\"ANUAL\"),N17,IF(AND(N23=\"SEMESTRAL\",J23=\"MENSUAL\"),N17/6,IF(AND(N23=\"SEMESTRAL\",J23=\"TRIMESTRAL\"),N17/2,IF(AND(N23=\"SEMESTRAL\",J23=\"SEMESTRAL\"),N17,IF(AND(N23=\"SEMESTRAL\",J23=\"ANUAL\"),\"REVISAR FRECUENCIAS\",IF(AND(N23=\"TRIMESTRAL\",J23=\"MENSUAL\"),N17/3,IF(AND(N23=\"TRIMESTRAL\",J23=\"TRIMESTRAL\"),N17,IF(AND(N23=\"TRIMESTRAL\",J23=\"SEMESTRAL\"),\"REVISAR FRECUENCIAS\",IF(AND(N23=\"TRIMESTRAL\",J23=\"ANUAL\"),\"REVISAR FRECUENCIAS\",IF(AND(N23=\"MENSUAL\",J23=\"MENSUAL\"),N17,IF(AND(N23=\"MENSUAL\",J23=\"TRIMESTRAL\"),\"REVISAR FRECUENCIAS\",IF(AND(N23=\"MENSUAL\",J23=\"SEMESTRAL\"),\"REVISAR FRECUENCIAS\",IF(AND(N23=\"MENSUAL\",J23=\"ANUAL\"),\"REVISAR FRECUENCIAS\",\"\"))))))))))))))))","v":0.8},{"$f":"IF(AND(N23=\"ANUAL\",J23=\"MENSUAL\"),N17/12+D50,IF(AND(N23=\"ANUAL\",J23=\"TRIMESTRAL\"),N17/4+D50,IF(AND(N23=\"ANUAL\",J23=\"SEMESTRAL\"),N17/2+D50,IF(AND(N23=\"SEMESTRAL\",J23=\"MENSUAL\"),N17/6+D50,IF(AND(N23=\"SEMESTRAL\",J23=\"TRIMESTRAL\"),N17/2+D50,IF(AND(N23=\"SEMESTRAL\",J23=\"SEMESTRAL\"),N17,IF(AND(N23=\"TRIMESTRAL\",J23=\"MENSUAL\"),N17/3+D50,IF(AND(N23=\"TRIMESTRAL\",J23=\"TRIMESTRAL\"),N17,IF(AND(N23=\"MENSUAL\",J23=\"MENSUAL\"),N17,\"\")))))))))","v":0.8},{"$f":"IF(AND(N23=\"ANUAL\",J23=\"MENSUAL\"),N17/12+E50,IF(AND(N23=\"ANUAL\",J23=\"TRIMESTRAL\"),N17/4+E50,IF(AND(N23=\"SEMESTRAL\",J23=\"MENSUAL\"),N17/6+E50,IF(AND(N23=\"SEMESTRAL\",J23=\"TRIMESTRAL\"),N17/2,IF(AND(N23=\"TRIMESTRAL\",J23=\"MENSUAL\"),N17/3+E50,IF(AND(N23=\"TRIMESTRAL\",J23=\"TRIMESTRAL\"),N17,IF(AND(N23=\"MENSUAL\",J23=\"MENSUAL\"),N17,\"\")))))))","v":""},{"$f":"IF(AND(N23=\"ANUAL\",J23=\"MENSUAL\"),N17/12+F50,IF(AND(N23=\"ANUAL\",J23=\"TRIMESTRAL\"),N17/4+F50,IF(AND(N23=\"SEMESTRAL\",J23=\"MENSUAL\"),N17/6+F50,IF(AND(N23=\"SEMESTRAL\",J23=\"TRIMESTRAL\"),N17/2+F50,IF(AND(N23=\"TRIMESTRAL\",J23=\"MENSUAL\"),N17/3,IF(AND(N23=\"TRIMESTRAL\",J23=\"TRIMESTRAL\"),N17,IF(AND(N23=\"MENSUAL\",J23=\"MENSUAL\"),N17,\"\")))))))","v":""},{"$f":"IF(AND($N$23=\"ANUAL\",$J$23=\"MENSUAL\"),$N$17/12+G50,IF(AND(N23=\"SEMESTRAL\",J23=\"MENSUAL\"),N17/6+G50,IF(AND(N23=\"TRIMESTRAL\",J23=\"MENSUAL\"),N17/3+G50,IF(AND(N23=\"MENSUAL\",J23=\"MENSUAL\"),N17,\"\"))))","v":""},{"$f":"IF(AND($N$23=\"ANUAL\",$J$23=\"MENSUAL\"),$N$17/12+H50,IF(AND(N23=\"SEMESTRAL\",J23=\"MENSUAL\"),N17/6+H50,IF(AND(N23=\"TRIMESTRAL\",J23=\"MENSUAL\"),N17/3+H50,IF(AND(N23=\"MENSUAL\",J23=\"MENSUAL\"),N17,\"\"))))","v":""},{"$f":"IF(AND($N$23=\"ANUAL\",$J$23=\"MENSUAL\"),$N$17/12+I50,IF(AND(N23=\"SEMESTRAL\",J23=\"MENSUAL\"),N17/6,IF(AND(N23=\"TRIMESTRAL\",J23=\"MENSUAL\"),N17/3,IF(AND(N23=\"MENSUAL\",J23=\"MENSUAL\"),N17,\"\"))))","v":""},{"$f":"IF(AND($N$23=\"ANUAL\",$J$23=\"MENSUAL\"),$N$17/12+J50,IF(AND(N23=\"SEMESTRAL\",J23=\"MENSUAL\"),N17/6+J50,IF(AND(N23=\"TRIMESTRAL\",J23=\"MENSUAL\"),N17/3+J50,IF(AND(N23=\"MENSUAL\",J23=\"MENSUAL\"),N17,\"\"))))","v":""},{"$f":"IF(AND($N$23=\"ANUAL\",$J$23=\"MENSUAL\"),$N$17/12+K50,IF(AND(N23=\"SEMESTRAL\",J23=\"MENSUAL\"),N17/6+K50,IF(AND(N23=\"TRIMESTRAL\",J23=\"MENSUAL\"),N17/3+K50,IF(AND(N23=\"MENSUAL\",J23=\"MENSUAL\"),N17,\"\"))))","v":""},{"$f":"IF(AND($N$23=\"ANUAL\",$J$23=\"MENSUAL\"),$N$17/12+L50,IF(AND(N23=\"SEMESTRAL\",J23=\"MENSUAL\"),N17/6+L50,IF(AND(N23=\"TRIMESTRAL\",J23=\"MENSUAL\"),N17/3,IF(AND(N23=\"MENSUAL\",J23=\"MENSUAL\"),N17,\"\"))))","v":""},{"$f":"IF(AND($N$23=\"ANUAL\",$J$23=\"MENSUAL\"),$N$17/12+M50,IF(AND(N23=\"SEMESTRAL\",J23=\"MENSUAL\"),N17/6+M50,IF(AND(N23=\"TRIMESTRAL\",J23=\"MENSUAL\"),N17/3+M50,IF(AND(N23=\"MENSUAL\",J23=\"MENSUAL\"),N17,\"\"))))","v":""},{"$f":"IF(AND($N$23=\"ANUAL\",$J$23=\"MENSUAL\"),$N$17/12+N50,IF(AND(N23=\"SEMESTRAL\",J23=\"MENSUAL\"),N17/6+N50,IF(AND(N23=\"TRIMESTRAL\",J23=\"MENSUAL\"),N17/3+N50,IF(AND(N23=\"MENSUAL\",J23=\"MENSUAL\"),N17,\"\"))))","v":""}]
[]
[null,null,"NIVEL DE SEGREGACIÓN *"]
[null,null,"UNIDAD SEGREGADA (Ej. Facultad, Programa Académico, Área)",null,null,null,"RESULTADO",null,null,null,"ANALISIS DE DATOS SEGREGADO"]
[null,null,"CASOS EN SEGUIMIENTO JURÍDICO",null,null,null,22,null,null,null,"Se observa que los 22 procesos que reposan en la dirección jurídica para cobro jurídico se les realizo un seguimiento en los ultimos seis meses del año 2024"]
[null,null,"CASOS GESTIONADOS",null,null,null,1,null,null,null,"Se observa 1 proceso gestionado para cobro jurídico ante el juzgado en los ultimos seis meses del año 2024"]
[]
[]
[]
[]
[]
[]
[]
[]
[]
[]
[]
[null,null,null,null,null,null,"Estratégico",null,null,"Eficacia"]
[null,null,null,null,null,null,"Misional",null,null,"Eficiencia"]
[null,null,null,null,null,null,"Apoyo",null,null,"Acreditación"]
[null,null,null,null,null,null,"Seguimiento, Medición, Análisis y Evaluación",null,null,"Positiva"]
[null,null,null,null,null,null,"Direccionamiento Estratégico",null,null,"Negativa"]
[null,null,null,null,null,null,"Planeación Institucional",null,null,"Por Unidad Regional"]
[null,null,null,null,null,null,"Proyectos Especiales y Relaciones Interinstitucionales",null,null,"Por Facultad"]
[null,null,null,null,null,null,"Sistemas Integrados",null,null,"Por Programa Académico"]
[null,null,null,null,null,null,"Autoevaluación y Acreditación",null,null,"Por área"]
[null,null,null,null,null,null,"Comunicaciones",null,null,"Por Laboratorio"]
[null,null,null,null,null,null,"Formación y Aprendizaje",null,null,"Otros"]
[null,null,null,null,null,null,"Ciencia, Tecnología e Innovación",null,null,"No Aplica"]
[null,null,null,null,null,null,"Interacción Social Universitaria"]
[null,null,null,null,null,null,"Bienestar Universitario"]
[null,null,null,null,null,null,"Admisiones y Registro"]
[null,null,null,null,null,null,"Graduados"]
[null,null,null,null,null,null,"Dialogando con el Mundo"]
[null,null,null,null,null,null,"Talento Humano"]
[null,null,null,null,null,null,"Jurídica"]
[null,null,null,null,null,null,"Financiera"]
[null,null,null,null,null,null,"Sistemas y Tecnología"]
[null,null,null,null,null,null,"Bienes y Servicios"]
[null,null,null,null,null,null,"Documental"]
[null,null,null,null,null,null,"Apoyo Académico"]
[null,null,null,null,null,null,"Control Interno"]
[null,null,null,null,null,null,"Control Disciplinario"]
[null,null,null,null,null,null,"Servicio de Atención al Ciudadano"]

{"sheet":"AJU-7","index":5,"n_rows":102,"n_cols":15,"rows_kept":102,"cut":false,"hidden":false,"merged":[[1,1,3,2],[4,2,7,3],[4,4,4,11],[4,12,4,14],[5,4,5,11],[5,12,5,14],[6,4,7,11],[6,12,6,14],[7,12,7,14],[15,2,15,14],[8,2,8,14],[9,2,10,14],[11,2,11,3],[11,4,11,7],[11,8,11,9],[11,10,11,14],[12,2,12,3],[12,4,12,14],[13,2,13,3],[13,4,13,14],[14,2,14,14],[16,15,17,15],[17,2,18,3],[17,4,17,5],[17,6,17,10],[17,11,18,12],[17,13,18,14],[18,4,18,5],[18,6,18,10],[16,2,16,3],[16,4,16,6],[16,7,16,8],[16,9,16,10],[16,11,16,12],[16,13,16,14],[19,2,21,3],[19,4,21,6],[19,7,21,8],[19,9,21,10],[19,11,19,14],[22,13,23,14],[23,2,23,3],[23,4,23,6],[25,2,25,14],[26,2,42,8],[26,9,26,14],[42,9,42,14],[22,2,22,3],[22,4,22,6],[22,7,23,8],[22,9,23,10],[22,11,23,12],[53,6,53,9],[53,10,53,14],[26,15,27,15],[27,9,32,14],[33,9,33,14],[34,9,39,14],[40,9,40,14],[41,9,41,14],[44,2,44,14],[51,2,51,14],[52,2,52,5],[52,6,52,9],[52,10,52,14],[53,2,53,5],[56,2,56,5],[57,2,57,5],[54,6,54,9],[54,10,54,14],[55,6,55,9],[55,10,55,14],[54,2,54,5],[55,2,55,5],[61,10,61,14],[56,6,56,9],[56,10,56,14],[57,6,57,9],[57,10,57,14],[58,10,58,14],[59,10,59,14],[60,10,60,14],[62,10,62,14],[63,2,63,5],[63,6,63,9],[63,10,63,14],[62,2,62,5],[58,2,58,5],[59,2,59,5],[60,2,60,5],[61,2,61,5],[62,6,62,9],[61,6,61,9],[58,6,58,9],[59,6,59,9],[60,6,60,9]]}
[]
[null,"      REGRESAR"]
[]
[]
[null,null,null,null,"MACROPROCESO ESTRATÉGICO",null,null,null,null,null,null,null,"CÓDIGO: ESGr027"]
[null,null,null,null,"PROCESO GESTIÓN SISTEMAS INTEGRADOS - CALIDAD",null,null,null,null,null,null,null,"VERSIÓN: 8"]
[null,null,null,null,"MATRIZ DE MEDICIÓN Y SEGUIMIENTO A LOS PROCESOS DE GESTIÓN",null,null,null,null,null,null,null,"VIGENCIA: 2023-07-28"]
[null,null,null,null,null,null,null,null,null,null,null,null,"PÁGINA: 1 de 4"]
[]
[null,null,"FICHA DE INDICADOR"]
[]
[null,null,"MACROPROCESO",null,"Apoyo",null,null,null,"NOMBRE DEL INDICADOR",null,"Oportunidad en los términos de respuesta frente a los requerimientos jurídicos (Integradoc)"]
[null,null,"PROCESO GESTIÓN",null,"Jurídica"]
[null,null,"RESPONSABLE DE MEDICIÓN",null,"Director(a) Jurídica"]
[]
[null,null,"1. COMPORTAMIENTO DE INDICADOR"]
[null,null,"CLASIFICACIÓN DE LA MEDICIÓN",null,1,null,null,"TIPO DE INDICADOR",null,"Eficacia",null,"META",null,0.8]
[null,null,"FORMULA",null,"NUMERADOR",null,"N° solicitudes atendidas en los términos establecidos (requerimientos jurídicos por Integradoc) *100 ",null,null,null,null,"UNIDAD DE MEDIDA",null,"Porcentaje"]
[null,null,null,null,"DENOMINADOR",null,"Total de solicitudes contestadas, allegadas como requerimientos jurídicos por Integradoc"]
[null,null,"TENDENCIA",null,"Positiva",null,null,"NIVEL DE SEGREGACIÓN *",null,"Otros",null,"ESCALA"]
[null,null,null,null,null,null,null,null,null,null,null,"Deficiente","Aceptable","Bueno","Excelente"]
[null,null,null,null,null,null,null,null,null,null,null,"0% - 40,9%","41% - 60,9%","61% - 79,9% ",">=80%"]
[null,null,"ORIGEN DE DATOS NUMERADOR",null,"Data Integradoc",null,null,"FRECUENCIA DE LA MEDICIÓN",null,"TRIMESTRAL",null,"FRECUENCIA DE RESULTADO",null,"TRIMESTRAL"]
[null,null,"ORIGEN DE DATOS DENOMINADOR",null,"Data Integradoc"]
[]
[null,null,"RESULTADOS"]
[null,null,null,null,null,null,null,null,null,"ANÁLISIS DE DATOS"]
[null,null,null,null,null,null,null,null,null,"I TRIMESTRE: \nSe recibieron 5 requerimientos juridicos de los cuales se cumplieron dentro del termino estipulado para cada uno de las solicitudes, Se debe tener en cuenta que se medio bajo la normatividad de los días señalados para cada revisión teniendo en cuenta fecha calendario, además del historico enviado por integradoc (Circular 008-2021)\nII TRIMESTRE:\nDe los datos objeto análisis, se puede concluir que, durante el segundo trimestre del 2024, en la dirección jurídica no se cumpliò la meta establecida quedando en un 67% de 80% cmo resultado en la escala \"BUENO\". Se recibierón un total de 9 requerimientos jurídicos de los cuales 6 fueron atendidos dentro de los términos establecidos.\nIII TRIMESTRE:\nSe recibieron 6 requerimientos jurídicos de los cuales 1 se cumplieron dentro del término estipulado para cada una de las solicitudes, y 5 no cumplen dentro del término, dando de esta manera un resultado de cumplimiento de 17%; así mismo se evidencia que algunos de los asuntos relacionados fueron tramitados simultáneamente por correo electrónico, lo que genera un desgaste administrativo y duplicidad de los asuntos.\nIV TRIMESTRE: \nDurante el IV Trimestre, se recibieron 23 requerimientos jurídicos, de los cuales 17 se atendieron oportunamente, lo que representa un cumplimiento del 74%.que a nivel de escala el resultado general para este semestre es \"BUENO\".,  no se alcanza a cumplir la meta faltante del 6% teniendo en cuenta que algunas solicitudes devueltas no allega a tiempo la documentacion solicitada  Se debe tener en cuenta que se medio bajo la normatividad de los días señalados para cada revisión teniendo en cuenta fecha calendario, además del historico enviado por integradoc (Circular 008-2021)"]
[]
[]
[]
[]
[]
[null,null,null,null,null,null,null,null,null,"ACCIÓN FORMULADA"]
[null,null,null,null,null,null,null,null,null,"I TRIMESTRE:\nConcorde con el análisis de datos, se evidencia que se cumplio la meta propuesta, pero es indispensable fomentar a los abogados (as) nuevos de la Dirección Jurídica, el cumplimiento de la Circular 08 de 2021 con la finalidad de garantizar el desarrollo de idóneo de las solicitudes en los términos establecidos.\nII TRIMESTRE:\nTeniendo en cuenta que la meta para este trimestre no se cumplió, la dirección jurídica propone realizar mesas de trabajo con los abogados para recordar los términos de respuesta a los que deben dar lugar a los requerimientos allegados a dirección jurídica. Adicional, se hace necesario recodar a las áreas solicitantes la Circular 08 de 2021 con la finalidad de garantizar el desarrollo de idóneo de las solicitudes en los términos establecidos, así como remitir la documentación completa en los términos correspondientes, en aras de fortalecer que las correcciones sean realizadas acorde a los términos.\nIII TRIMESTRE\nConcorde con el análisis de datos, se evidencia que no se cumplió la meta propuesta, por lo tanto, se hace necesario recodar a las áreas solicitantes y a los abogados (as) de la Dirección Jurídica, el cumplimiento de la Circular 08 de 2021 con la finalidad de garantizar el desarrollo de idóneo de las solicitudes en los términos establecidos, así como remitir la documentación completa en los términos correspondientes, en aras de fortalecer que las correcciones sean realizadas acorde a los términos.\nPor otro lado, se dará conocer a las diferentes áreas de la Universidad de Cundinamarca, mediante comunicado, circular o correo masivo, los medios idóneos para la radicación de los diferentes asuntos, con la finalidad de evitar duplicidad de los asuntos y así garantizar un respuesta pronta y efectiva.\nIV TRIMESTRE:\nSe hace necesario  dar a conocer a las areas solicitantes y a los abogados la Circiular 08 de 2021 con la finalidad de dar garantizar el desarrollo de idoneo de las solicitudes en los terminos establecidos, así como conminar remitir la documentación completa en los términos correspondientes."]
[]
[]
[]
[]
[]
[null,null,null,null,null,null,null,null,null,"RESPONSABLE "]
[null,null,null,null,null,null,null,null,null,{"$f":"E14","v":"Director(a) Jurídica"}]
[]
[]
[null,null,"PERIODO DE EVALUACIÓN"]
[null,null,"MES",{"$f":"IF(J23=\"MENSUAL\",\"ENERO\",IF(J23=\"TRIMESTRAL\",\"MARZO\",IF(J23=\"SEMESTRAL\",\"JUNIO\",IF(J23=\"ANUAL\",YEAR(TODAY()),\"\"))))","v":"MARZO"},{"$f":"IF(J23=\"MENSUAL\",\"FEBRERO\",IF(J23=\"TRIMESTRAL\",\"JUNIO\",IF(J23=\"SEMESTRAL\",\"DICIEMBRE\",\"\")))","v":"JUNIO"},{"$f":"IF(J23=\"MENSUAL\",\"MARZO\",IF(J23=\"TRIMESTRAL\",\"SEPTIEMBRE\",\"\"))","v":"SEPTIEMBRE"},{"$f":"IF(J23=\"MENSUAL\",\"ABRIL\",IF(J23=\"TRIMESTRAL\",\"DICIEMBRE\",\"\"))","v":"DICIEMBRE"},{"$f":"IF(J23=\"MENSUAL\",\"MAYO\",\"\")","v":""},{"$f":"IF(J23=\"MENSUAL\",\"JUNIO\",\"\")","v":""},{"$f":"IF(J23=\"MENSUAL\",\"JULIO\",\"\")","v":""},{"$f":"IF(J23=\"MENSUAL\",\"AGOSTO\",\"\")","v":""},{"$f":"IF(J23=\"MENSUAL\",\"SEPTIEMBRE\",\"\")","v":""},{"$f":"IF(J23=\"MENSUAL\",\"OCTUBRE\",\"\")","v":""},{"$f":"IF(J23=\"MENSUAL\",\"NOVIEMBRE\",\"\")","v":""},{"$f":"IF(J23=\"MENSUAL\",\"DICIEMBRE\",\"\")","v":""}]
[null,null,{"$f":"G18","v":"N° solicitudes atendidas en los términos establecidos (requerimientos jurídicos por Integradoc) *100 "},5,6,1,17]
[null,null,{"$f":"G19","v":"Total de solicitudes contestadas, allegadas como requerimientos jurídicos por Integradoc"},5,9,6,23]
[null,null,"VALOR ",{"$f":"IFERROR(IF($E$17=1,D47/D48,IF($E$17=2,D47,\"\")),\"\")","v":1},{"$f":"IFERROR(IF($E$17=1,E47/E48,IF($E$17=2,E47,\"\")),\"\")","v":0.66666666666666663},{"$f":"IFERROR(IF($E$17=1,F47/F48,IF($E$17=2,F47,\"\")),\"\")","v":0.16666666666666666},{"$f":"IFERROR(IF($E$17=1,G47/G48,IF($E$17=2,F47,\"\")),\"\")","v":0.73913043478260865},{"$f":"IFERROR(IF($E$17=1,H47/H48,IF($E$17=2,H47,\"\")),\"\")","v":""},"","","","","","",""]
[null,null,"META PONDERADA",{"$f":"IF(AND(N23=\"ANUAL\",J23=\"MENSUAL\"),N17/12,IF(AND(N23=\"ANUAL\",J23=\"TRIMESTRAL\"),N17/4,IF(AND(N23=\"ANUAL\",J23=\"SEMESTRAL\"),N17/2,IF(AND(N23=\"ANUAL\",J23=\"ANUAL\"),N17,IF(AND(N23=\"SEMESTRAL\",J23=\"MENSUAL\"),N17/6,IF(AND(N23=\"SEMESTRAL\",J23=\"TRIMESTRAL\"),N17/2,IF(AND(N23=\"SEMESTRAL\",J23=\"SEMESTRAL\"),N17,IF(AND(N23=\"SEMESTRAL\",J23=\"ANUAL\"),\"REVISAR FRECUENCIAS\",IF(AND(N23=\"TRIMESTRAL\",J23=\"MENSUAL\"),N17/3,IF(AND(N23=\"TRIMESTRAL\",J23=\"TRIMESTRAL\"),N17,IF(AND(N23=\"TRIMESTRAL\",J23=\"SEMESTRAL\"),\"REVISAR FRECUENCIAS\",IF(AND(N23=\"TRIMESTRAL\",J23=\"ANUAL\"),\"REVISAR FRECUENCIAS\",IF(AND(N23=\"MENSUAL\",J23=\"MENSUAL\"),N17,IF(AND(N23=\"MENSUAL\",J23=\"TRIMESTRAL\"),\"REVISAR FRECUENCIAS\",IF(AND(N23=\"MENSUAL\",J23=\"SEMESTRAL\"),\"REVISAR FRECUENCIAS\",IF(AND(N23=\"MENSUAL\",J23=\"ANUAL\"),\"REVISAR FRECUENCIAS\",\"\"))))))))))))))))","v":0.8},{"$f":"IF(AND(N23=\"ANUAL\",J23=\"MENSUAL\"),N17/12+D50,IF(AND(N23=\"ANUAL\",J23=\"TRIMESTRAL\"),N17/4+D50,IF(AND(N23=\"ANUAL\",J23=\"SEMESTRAL\"),N17/2+D50,IF(AND(N23=\"SEMESTRAL\",J23=\"MENSUAL\"),N17/6+D50,IF(AND(N23=\"SEMESTRAL\",J23=\"TRIMESTRAL\"),N17/2+D50,IF(AND(N23=\"SEMESTRAL\",J23=\"SEMESTRAL\"),N17,IF(AND(N23=\"TRIMESTRAL\",J23=\"MENSUAL\"),N17/3+D50,IF(AND(N23=\"TRIMESTRAL\",J23=\"TRIMESTRAL\"),N17,IF(AND(N23=\"MENSUAL\",J23=\"MENSUAL\"),N17,\"\")))))))))","v":0.8},{"$f":"IF(AND(N23=\"ANUAL\",J23=\"MENSUAL\"),N17/12+E50,IF(AND(N23=\"ANUAL\",J23=\"TRIMESTRAL\"),N17/4+E50,IF(AND(N23=\"SEMESTRAL\",J23=\"MENSUAL\"),N17/6+E50,IF(AND(N23=\"SEMESTRAL\",J23=\"TRIMESTRAL\"),N17/2,IF(AND(N23=\"TRIMESTRAL\",J23=\"MENSUAL\"),N17/3+E50,IF(AND(N23=\"TRIMESTRAL\",J23=\"TRIMESTRAL\"),N17,IF(AND(N23=\"MENSUAL\",J23=\"MENSUAL\"),N17,\"\")))))))","v":0.8},{"$f":"IF(AND(N23=\"ANUAL\",J23=\"MENSUAL\"),N17/12+F50,IF(AND(N23=\"ANUAL\",J23=\"TRIMESTRAL\"),N17/4+F50,IF(AND(N23=\"SEMESTRAL\",J23=\"MENSUAL\"),N17/6+F50,IF(AND(N23=\"SEMESTRAL\",J23=\"TRIMESTRAL\"),N17/2+F50,IF(AND(N23=\"TRIMESTRAL\",J23=\"MENSUAL\"),N17/3,IF(AND(N23=\"TRIMESTRAL\",J23=\"TRIMESTRAL\"),N17,IF(AND(N23=\"MENSUAL\",J23=\"MENSUAL\"),N17,\"\")))))))","v":0.8},{"$f":"IF(AND($N$23=\"ANUAL\",$J$23=\"MENSUAL\"),$N$17/12+G50,IF(AND(N23=\"SEMESTRAL\",J23=\"MENSUAL\"),N17/6+G50,IF(AND(N23=\"TRIMESTRAL\",J23=\"MENSUAL\"),N17/3+G50,IF(AND(N23=\"MENSUAL\",J23=\"MENSUAL\"),N17,\"\"))))","v":""},{"$f":"IF(AND($N$23=\"ANUAL\",$J$23=\"MENSUAL\"),$N$17/12+H50,IF(AND(N23=\"SEMESTRAL\",J23=\"MENSUAL\"),N17/6+H50,IF(AND(N23=\"TRIMESTRAL\",J23=\"MENSUAL\"),N17/3+H50,IF(AND(N23=\"MENSUAL\",J23=\"MENSUAL\"),N17,\"\"))))","v":""},{"$f":"IF(AND($N$23=\"ANUAL\",$J$23=\"MENSUAL\"),$N$17/12+I50,IF(AND(N23=\"SEMESTRAL\",J23=\"MENSUAL\"),N17/6,IF(AND(N23=\"TRIMESTRAL\",J23=\"MENSUAL\"),N17/3,IF(AND(N23=\"MENSUAL\",J23=\"MENSUAL\"),N17,\"\"))))","v":""},{"$f":"IF(AND($N$23=\"ANUAL\",$J$23=\"MENSUAL\"),$N$17/12+J50,IF(AND(N23=\"SEMESTRAL\",J23=\"MENSUAL\"),N17/6+J50,IF(AND(N23=\"TRIMESTRAL\",J23=\"MENSUAL\"),N17/3+J50,IF(AND(N23=\"MENSUAL\",J23=\"MENSUAL\"),N17,\"\"))))","v":""},{"$f":"IF(AND($N$23=\"ANUAL\",$J$23=\"MENSUAL\"),$N$17/12+K50,IF(AND(N23=\"SEMESTRAL\",J23=\"MENSUAL\"),N17/6+K50,IF(AND(N23=\"TRIMESTRAL\",J23=\"MENSUAL\"),N17/3+K50,IF(AND(N23=\"MENSUAL\",J23=\"MENSUAL\"),N17,\"\"))))","v":""},{"$f":"IF(AND($N$23=\"ANUAL\",$J$23=\"MENSUAL\"),$N$17/12+L50,IF(AND(N23=\"SEMESTRAL\",J23=\"MENSUAL\"),N17/6+L50,IF(AND(N23=\"TRIMESTRAL\",J23=\"MENSUAL\"),N17/3,IF(AND(N23=\"MENSUAL\",J23=\"MENSUAL\"),N17,\"\"))))","v":""},{"$f":"IF(AND($N$23=\"ANUAL\",$J$23=\"MENSUAL\"),$N$17/12+M50,IF(AND(N23=\"SEMESTRAL\",J23=\"MENSUAL\"),N17/6+M50,IF(AND(N23=\"TRIMESTRAL\",J23=\"MENSUAL\"),N17/3+M50,IF(AND(N23=\"MENSUAL\",J23=\"MENSUAL\"),N17,\"\"))))","v":""},{"$f":"IF(AND($N$23=\"ANUAL\",$J$23=\"MENSUAL\"),$N$17/12+N50,IF(AND(N23=\"SEMESTRAL\",J23=\"MENSUAL\"),N17/6+N50,IF(AND(N23=\"TRIMESTRAL\",J23=\"MENSUAL\"),N17/3+N50,IF(AND(N23=\"MENSUAL\",J23=\"MENSUAL\"),N17,\"\"))))","v":""}]
[]
[null,null,"NIVEL DE SEGREGACIÓN *"]
[null,null,"UNIDAD SEGREGADA (Ej. Facultad, Programa Académico, Área)",null,null,null,"RESULTADO",null,null,null,"ANALISIS DE DATOS SEGREGADO"]
[null,null,"CONCEPTOS",null,null,null,1,null,null,null,"SE RECIBIO 1  REQUERIMIENTO EN CUANTO A CONCEPTOS, EL CUAL SE ATENDIERON DENTRO DE LOS TERMINOS DE RESPUESTA DEFINIDOS"]
[null,null,"ACTAS DE REINICIO, INICIO Y SUSPENSION",null,null,null,1,null,null,null,"SE RECIBIO 1  REQUERIMIENTO EN CUANTO A ACTAS DE INICIO, EL CUAL SE ATENDIERON DENTRO DE LOS TERMINOS DE RESPUESTA DEFINIDOS"]
[null,null,"ACTAS LIQUIDACION CONTRATACION PERSONAL ACADEMICA",null,null,null,1,null,null,null,"SE RECIBIERON 4 REQUERIMIENTOS EN CUANTO A LAS ACTAS LIQUIDACION CONTRATACION PERSONAL ACADEMICO, DE LOS CUALES, 4 SE ATENDIERON DENTRO DE LOS TERMINOS DE RESPUESTA DEFINIDOS"]
[null,null,"ACUERDOS DE VOLUNTADES (INTERACCIÓN UNIVERSITARIA)",null,null,null,"N/A",null,null,null,"NO SE RECIBIERON  REQUERIMIENTOS EN CUANTO A LOS ACUERDOS DE VOLUNTADES (INTERACCIÓN UNIVERSITARIA)."]
[null,null,"CONVENIOS",null,null,null,{"$f":"3/4","v":0.75},null,null,null,"SE RECIBIERON 4 REQUERIMIENTOS EN CUANTO A CONVENIOS, DE LOS CUALES, 3 SE ATENDIERON DENTRO DE LOS TERMINOS DE RESPUESTA DEFINIDOS"]
[null,null,"ESTUDIO DE CONVENIENCIA",null,null,null,"N/A",null,null,null,"NO SE RECIBIERON 0 REQUERIMIENTOS EN CUANTO A ESTUDIOS DE CONVENIENCIA"]
[null,null,"POLIZAS CONTRATACION PERSONAL ACADEMICA",null,null,null,"N/A",null,null,null,"NO SE RECIBIERON 0 REQUERIMIENTOS EN CUANTO A POLIZAS CONTRATACION PERSONAL ACADEMICA"]
[null,null,"RESOLUCIONES",null,null,null,{"$f":"3/8","v":0.375},null,null,null,"SE RECIBIERON 8 REQUERIMIENTOS EN CUANTO A RESOLUCIONES, DE LOS CUALES, 3 SE ATENDIERON DENTRO DE LOS TERMINOS DE RESPUESTA DEFINIDOS"]
[null,null,"REVISION OTRO SI (CONTRATACIÓN)",null,null,null,1,null,null,null,"SE RECIBIERON 5 REQUERIMIENTOS EN CUANTO A OTRO SI, DE LOS CUALES,  SE ATENDIERON DENTRO DE LOS TERMINOS DE RESPUESTA DEFINIDOS"]
[]
[]
[]
[]
[]
[]
[]
[]
[]
[]
[]
[]
[]
[null,null,null,null,null,null,"Estratégico",null,null,"Eficacia"]
[null,null,null,null,null,null,"Misional",null,null,"Eficiencia"]
[null,null,null,null,null,null,"Apoyo",null,null,"Acreditación"]
[null,null,null,null,null,null,"Seguimiento, Medición, Análisis y Evaluación",null,null,"Positiva"]
[null,null,null,null,null,null,"Direccionamiento Estratégico",null,null,"Negativa"]
[null,null,null,null,null,null,"Planeación Institucional",null,null,"Por Unidad Regional"]
[null,null,null,null,null,null,"Proyectos Especiales y Relaciones Interinstitucionales",null,null,"Por Facultad"]
[null,null,null,null,null,null,"Sistemas Integrados",null,null,"Por Programa Académico"]
[null,null,null,null,null,null,"Autoevaluación y Acreditación",null,null,"Por área"]
[null,null,null,null,null,null,"Comunicaciones",null,null,"Por Laboratorio"]
[null,null,null,null,null,null,"Formación y Aprendizaje",null,null,"Otros"]
[null,null,null,null,null,null,"Ciencia, Tecnología e Innovación",null,null,"No Aplica"]
[null,null,null,null,null,null,"Interacción Social Universitaria"]
[null,null,null,null,null,null,"Bienestar Universitario"]
[null,null,null,null,null,null,"Admisiones y Registro"]
[null,null,null,null,null,null,"Graduados"]
[null,null,null,null,null,null,"Dialogando con el Mundo"]
[null,null,null,null,null,null,"Talento Humano"]
[null,null,null,null,null,null,"Jurídica"]
[null,null,null,null,null,null,"Financiera"]
[null,null,null,null,null,null,"Sistemas y Tecnología"]
[null,null,null,null,null,null,"Bienes y Servicios"]
[null,null,null,null,null,null,"Documental"]
[null,null,null,null,null,null,"Apoyo Académico"]
[null,null,null,null,null,null,"Control Interno"]
[null,null,null,null,null,null,"Control Disciplinario"]
[null,null,null,null,null,null,"Servicio de Atención al Ciudadano"]

{"sheet":"AJU-8","index":6,"n_rows":93,"n_cols":15,"rows_kept":93,"cut":false,"hidden":false,"merged":[[1,1,3,2],[4,2,7,3],[4,4,4,11],[4,12,4,14],[5,4,5,11],[5,12,5,14],[6,4,7,11],[6,12,6,14],[7,12,7,14],[15,2,15,14],[8,2,8,14],[9,2,10,14],[11,2,11,3],[11,4,11,7],[11,8,11,9],[11,10,11,14],[12,2,12,3],[12,4,12,14],[13,2,13,3],[13,4,13,14],[14,2,14,14],[16,15,17,15],[17,2,18,3],[17,4,17,5],[17,6,17,10],[17,11,18,12],[17,13,18,14],[18,4,18,5],[18,6,18,10],[16,2,16,3],[16,4,16,6],[16,7,16,8],[16,9,16,10],[16,11,16,12],[16,13,16,14],[19,2,21,3],[19,4,21,6],[19,7,21,8],[19,9,21,10],[19,11,19,14],[41,9,41,14],[22,13,23,14],[23,2,23,3],[23,4,23,6],[25,2,25,14],[26,2,42,8],[26,9,26,14],[42,9,42,14],[22,2,22,3],[22,4,22,6],[22,7,23,8],[22,9,23,10],[22,11,23,12],[26,15,27,15],[27,9,32,14],[33,9,33,14],[34,9,39,14],[40,9,40,14],[54,2,54,5],[54,6,54,9],[54,10,54,14],[44,2,44,14],[51,2,51,14],[52,2,52,5],[52,6,52,9],[52,10,52,14],[53,2,53,5],[53,6,53,9],[53,10,53,14]]}
[]
[null,"      REGRESAR"]
[]
[]
[null,null,null,null,"MACROPROCESO ESTRATÉGICO",null,null,null,null,null,null,null,"CÓDIGO: ESGr027"]
[null,null,null,null,"PROCESO GESTIÓN SISTEMAS INTEGRADOS - CALIDAD",null,null,null,null,null,null,null,"VERSIÓN: 8"]
[null,null,null,null,"MATRIZ DE MEDICIÓN Y SEGUIMIENTO A LOS PROCESOS DE GESTIÓN",null,null,null,null,null,null,null,"VIGENCIA: 2023-07-28"]
[null,null,null,null,null,null,null,null,null,null,null,null,"PÁGINA: 1 de 4"]
[]
[null,null,"FICHA DE INDICADOR"]
[]
[null,null,"MACROPROCESO",null,"Apoyo",null,null,null,"NOMBRE DEL INDICADOR",null,"Eficacia en la defensa judicial de las acciones de tutela en que la Universidad es la accionada"]
[null,null,"PROCESO GESTIÓN",null,"Jurídica"]
[null,null,"RESPONSABLE DE MEDICIÓN",null,"Director(a) Jurídica"]
[]
[null,null,"1. COMPORTAMIENTO DE INDICADOR"]
[null,null,"CLASIFICACIÓN DE LA MEDICIÓN",null,1,null,null,"TIPO DE INDICADOR",null,"Eficacia",null,"META",null,0.85]
[null,null,"FORMULA",null,"NUMERADOR",null,"No.  tutelas ganadas *100 ",null,null,null,null,"UNIDAD DE MEDIDA",null,"Porcentaje"]
[null,null,null,null,"DENOMINADOR",null,"Total tutelas accionadas archivadas"]
[null,null,"TENDENCIA",null,"Positiva",null,null,"NIVEL DE SEGREGACIÓN *",null,"No Aplica",null,"ESCALA"]
[null,null,null,null,null,null,null,null,null,null,null,"Deficiente","Aceptable","Bueno","Excelente"]
[null,null,null,null,null,null,null,null,null,null,null,"0% - 40,9%","41% - 60,9%","61% - 84,9% ",">=85%"]
[null,null,"ORIGEN DE DATOS NUMERADOR",null,"Documento en Excel - AJUF013",null,null,"FRECUENCIA DE LA MEDICIÓN",null,"TRIMESTRAL",null,"FRECUENCIA DE RESULTADO",null,"TRIMESTRAL"]
[null,null,"ORIGEN DE DATOS DENOMINADOR",null,"Documento en Excel - AJUF013"]
[]
[null,null,"RESULTADOS"]
[null,null,null,null,null,null,null,null,null,"ANÁLISIS DE DATOS"]
[null,null,null,null,null,null,null,null,null,"I TRIMESTRE:\nDe los datos objeto análisis, se puede concluir que, durante el primer trimestre del 2024, la Dirección Jurídica respondió en términos las acciones de tutela en que la institución fue accionada y logro fallos favorables para la Universidad de Cundinamarca, sin embargo, una de las acciones de tutela se encuentran con fallo desfavorable. Por otro lado, se evidencio que se notificaron 17 acciones de tutela donde solo 15 se encuentran archivadas y dos pendientes del pronunciamiento por parte del ente judicial.\nII TRIMESTRE:\nDe los datos objeto análisis, se puede concluir que, durante el segundo trimestre del 2024, la Dirección Jurídica respondió en términos las acciones de tutela en que la institución fue accionada y logrando 9 fallos favorables para la Universidad de Cundinamarca, acciones de tutelas que ya se encuentran archivadas.\nIII TRIMESTRE:\nDe los datos objeto análisis, se puede concluir que, durante el tercer trimestre del 2024, la Dirección Jurídica respondió en términos las acciones de tutela en que la institución fue accionada y 7 fallos favorables para la Universidad de Cundinamarca, sin embargo, una de las acciones de tutela se encuentran con fallo desfavorable. \nIV TRIMESTRE:\nDe los datos objeto análisis, se puede concluir que, durante el cuarto trimestre del 2024, la Dirección Jurídica respondió en términos las acciones de tutela en que la institución fue accionada y logrando 4 fallos favorables para la Universidad de Cundinamarca, sin embargo, una de las acciones de tutela se encuentran con fallo desfavorable."]
[]
[]
[]
[]
[]
[null,null,null,null,null,null,null,null,null,"ACCIÓN FORMULADA"]
[null,null,null,null,null,null,null,null,null,"I TRIMESTRE:\nTeniendo en cuenta que se cumpliò con la meta establecida no aplica la proyeccciòn a estrategias.\nII TRIMESTRE:\nDe los datos objeto análisis, se puede concluir que, durante el segundo trimestre del 2024, la Dirección Jurídica respondió en términos las acciones de tutela, logrando un cumplimiento del 100% de las tutelas con fallos favorables.\nIII TRIMESTRE:\nTeniendo en cuenta que se cumpliò con la meta establecida no aplica la proyeccciòn a estrategias.\nIV TRIMESTRE:\nDe los datos objeto análisis, se puede concluir que, durante el cuarto trimestre del 2024, la Dirección Jurídica respondió en términos las acciones de tutela, logrando un cumplimiento del 100% de las tutelas con fallos favorables."]
[]
[]
[]
[]
[]
[null,null,null,null,null,null,null,null,null,"RESPONSABLE "]
[null,null,null,null,null,null,null,null,null,{"$f":"E14","v":"Director(a) Jurídica"}]
[]
[]
[null,null,"PERIODO DE EVALUACIÓN"]
[null,null,"MES",{"$f":"IF(J23=\"MENSUAL\",\"ENERO\",IF(J23=\"TRIMESTRAL\",\"MARZO\",IF(J23=\"SEMESTRAL\",\"JUNIO\",IF(J23=\"ANUAL\",YEAR(TODAY()),\"\"))))","v":"MARZO"},{"$f":"IF(J23=\"MENSUAL\",\"FEBRERO\",IF(J23=\"TRIMESTRAL\",\"JUNIO\",IF(J23=\"SEMESTRAL\",\"DICIEMBRE\",\"\")))","v":"JUNIO"},{"$f":"IF(J23=\"MENSUAL\",\"MARZO\",IF(J23=\"TRIMESTRAL\",\"SEPTIEMBRE\",\"\"))","v":"SEPTIEMBRE"},{"$f":"IF(J23=\"MENSUAL\",\"ABRIL\",IF(J23=\"TRIMESTRAL\",\"DICIEMBRE\",\"\"))","v":"DICIEMBRE"},{"$f":"IF(J23=\"MENSUAL\",\"MAYO\",\"\")","v":""},{"$f":"IF(J23=\"MENSUAL\",\"JUNIO\",\"\")","v":""},{"$f":"IF(J23=\"MENSUAL\",\"JULIO\",\"\")","v":""},{"$f":"IF(J23=\"MENSUAL\",\"AGOSTO\",\"\")","v":""},{"$f":"IF(J23=\"MENSUAL\",\"SEPTIEMBRE\",\"\")","v":""},{"$f":"IF(J23=\"MENSUAL\",\"OCTUBRE\",\"\")","v":""},{"$f":"IF(J23=\"MENSUAL\",\"NOVIEMBRE\",\"\")","v":""},{"$f":"IF(J23=\"MENSUAL\",\"DICIEMBRE\",\"\")","v":""}]
[null,null,{"$f":"G18","v":"No.  tutelas ganadas *100 "},14,9,7,4]
[null,null,{"$f":"G19","v":"Total tutelas accionadas archivadas"},15,9,7,4]
[null,null,"VALOR ",{"$f":"IFERROR(IF($E$17=1,D47/D48,IF($E$17=2,D47,\"\")),\"\")","v":0.93333333333333335},{"$f":"IFERROR(IF($E$17=1,E47/E48,IF($E$17=2,E47,\"\")),\"\")","v":1},{"$f":"IFERROR(IF($E$17=1,F47/F48,IF($E$17=2,F47,\"\")),\"\")","v":1},{"$f":"IFERROR(IF($E$17=1,G47/G48,IF($E$17=2,F47,\"\")),\"\")","v":1},{"$f":"IFERROR(IF($E$17=1,H47/H48,IF($E$17=2,H47,\"\")),\"\")","v":""},{"$f":"IFERROR(IF($E$17=1,I47/I48,IF($E$17=2,I47,\"\")),\"\")","v":""},"","","","","",""]
[null,null,"META PONDERADA",{"$f":"IF(AND(N23=\"ANUAL\",J23=\"MENSUAL\"),N17/12,IF(AND(N23=\"ANUAL\",J23=\"TRIMESTRAL\"),N17/4,IF(AND(N23=\"ANUAL\",J23=\"SEMESTRAL\"),N17/2,IF(AND(N23=\"ANUAL\",J23=\"ANUAL\"),N17,IF(AND(N23=\"SEMESTRAL\",J23=\"MENSUAL\"),N17/6,IF(AND(N23=\"SEMESTRAL\",J23=\"TRIMESTRAL\"),N17/2,IF(AND(N23=\"SEMESTRAL\",J23=\"SEMESTRAL\"),N17,IF(AND(N23=\"SEMESTRAL\",J23=\"ANUAL\"),\"REVISAR FRECUENCIAS\",IF(AND(N23=\"TRIMESTRAL\",J23=\"MENSUAL\"),N17/3,IF(AND(N23=\"TRIMESTRAL\",J23=\"TRIMESTRAL\"),N17,IF(AND(N23=\"TRIMESTRAL\",J23=\"SEMESTRAL\"),\"REVISAR FRECUENCIAS\",IF(AND(N23=\"TRIMESTRAL\",J23=\"ANUAL\"),\"REVISAR FRECUENCIAS\",IF(AND(N23=\"MENSUAL\",J23=\"MENSUAL\"),N17,IF(AND(N23=\"MENSUAL\",J23=\"TRIMESTRAL\"),\"REVISAR FRECUENCIAS\",IF(AND(N23=\"MENSUAL\",J23=\"SEMESTRAL\"),\"REVISAR FRECUENCIAS\",IF(AND(N23=\"MENSUAL\",J23=\"ANUAL\"),\"REVISAR FRECUENCIAS\",\"\"))))))))))))))))","v":0.85},{"$f":"IF(AND(N23=\"ANUAL\",J23=\"MENSUAL\"),N17/12+D50,IF(AND(N23=\"ANUAL\",J23=\"TRIMESTRAL\"),N17/4+D50,IF(AND(N23=\"ANUAL\",J23=\"SEMESTRAL\"),N17/2+D50,IF(AND(N23=\"SEMESTRAL\",J23=\"MENSUAL\"),N17/6+D50,IF(AND(N23=\"SEMESTRAL\",J23=\"TRIMESTRAL\"),N17/2+D50,IF(AND(N23=\"SEMESTRAL\",J23=\"SEMESTRAL\"),N17,IF(AND(N23=\"TRIMESTRAL\",J23=\"MENSUAL\"),N17/3+D50,IF(AND(N23=\"TRIMESTRAL\",J23=\"TRIMESTRAL\"),N17,IF(AND(N23=\"MENSUAL\",J23=\"MENSUAL\"),N17,\"\")))))))))","v":0.85},{"$f":"IF(AND(N23=\"ANUAL\",J23=\"MENSUAL\"),N17/12+E50,IF(AND(N23=\"ANUAL\",J23=\"TRIMESTRAL\"),N17/4+E50,IF(AND(N23=\"SEMESTRAL\",J23=\"MENSUAL\"),N17/6+E50,IF(AND(N23=\"SEMESTRAL\",J23=\"TRIMESTRAL\"),N17/2,IF(AND(N23=\"TRIMESTRAL\",J23=\"MENSUAL\"),N17/3+E50,IF(AND(N23=\"TRIMESTRAL\",J23=\"TRIMESTRAL\"),N17,IF(AND(N23=\"MENSUAL\",J23=\"MENSUAL\"),N17,\"\")))))))","v":0.85},{"$f":"IF(AND(N23=\"ANUAL\",J23=\"MENSUAL\"),N17/12+F50,IF(AND(N23=\"ANUAL\",J23=\"TRIMESTRAL\"),N17/4+F50,IF(AND(N23=\"SEMESTRAL\",J23=\"MENSUAL\"),N17/6+F50,IF(AND(N23=\"SEMESTRAL\",J23=\"TRIMESTRAL\"),N17/2+F50,IF(AND(N23=\"TRIMESTRAL\",J23=\"MENSUAL\"),N17/3,IF(AND(N23=\"TRIMESTRAL\",J23=\"TRIMESTRAL\"),N17,IF(AND(N23=\"MENSUAL\",J23=\"MENSUAL\"),N17,\"\")))))))","v":0.85},{"$f":"IF(AND($N$23=\"ANUAL\",$J$23=\"MENSUAL\"),$N$17/12+G50,IF(AND(N23=\"SEMESTRAL\",J23=\"MENSUAL\"),N17/6+G50,IF(AND(N23=\"TRIMESTRAL\",J23=\"MENSUAL\"),N17/3+G50,IF(AND(N23=\"MENSUAL\",J23=\"MENSUAL\"),N17,\"\"))))","v":""},{"$f":"IF(AND($N$23=\"ANUAL\",$J$23=\"MENSUAL\"),$N$17/12+H50,IF(AND(N23=\"SEMESTRAL\",J23=\"MENSUAL\"),N17/6+H50,IF(AND(N23=\"TRIMESTRAL\",J23=\"MENSUAL\"),N17/3+H50,IF(AND(N23=\"MENSUAL\",J23=\"MENSUAL\"),N17,\"\"))))","v":""},{"$f":"IF(AND($N$23=\"ANUAL\",$J$23=\"MENSUAL\"),$N$17/12+I50,IF(AND(N23=\"SEMESTRAL\",J23=\"MENSUAL\"),N17/6,IF(AND(N23=\"TRIMESTRAL\",J23=\"MENSUAL\"),N17/3,IF(AND(N23=\"MENSUAL\",J23=\"MENSUAL\"),N17,\"\"))))","v":""},{"$f":"IF(AND($N$23=\"ANUAL\",$J$23=\"MENSUAL\"),$N$17/12+J50,IF(AND(N23=\"SEMESTRAL\",J23=\"MENSUAL\"),N17/6+J50,IF(AND(N23=\"TRIMESTRAL\",J23=\"MENSUAL\"),N17/3+J50,IF(AND(N23=\"MENSUAL\",J23=\"MENSUAL\"),N17,\"\"))))","v":""},{"$f":"IF(AND($N$23=\"ANUAL\",$J$23=\"MENSUAL\"),$N$17/12+K50,IF(AND(N23=\"SEMESTRAL\",J23=\"MENSUAL\"),N17/6+K50,IF(AND(N23=\"TRIMESTRAL\",J23=\"MENSUAL\"),N17/3+K50,IF(AND(N23=\"MENSUAL\",J23=\"MENSUAL\"),N17,\"\"))))","v":""},{"$f":"IF(AND($N$23=\"ANUAL\",$J$23=\"MENSUAL\"),$N$17/12+L50,IF(AND(N23=\"SEMESTRAL\",J23=\"MENSUAL\"),N17/6+L50,IF(AND(N23=\"TRIMESTRAL\",J23=\"MENSUAL\"),N17/3,IF(AND(N23=\"MENSUAL\",J23=\"MENSUAL\"),N17,\"\"))))","v":""},{"$f":"IF(AND($N$23=\"ANUAL\",$J$23=\"MENSUAL\"),$N$17/12+M50,IF(AND(N23=\"SEMESTRAL\",J23=\"MENSUAL\"),N17/6+M50,IF(AND(N23=\"TRIMESTRAL\",J23=\"MENSUAL\"),N17/3+M50,IF(AND(N23=\"MENSUAL\",J23=\"MENSUAL\"),N17,\"\"))))","v":""},{"$f":"IF(AND($N$23=\"ANUAL\",$J$23=\"MENSUAL\"),$N$17/12+N50,IF(AND(N23=\"SEMESTRAL\",J23=\"MENSUAL\"),N17/6+N50,IF(AND(N23=\"TRIMESTRAL\",J23=\"MENSUAL\"),N17/3+N50,IF(AND(N23=\"MENSUAL\",J23=\"MENSUAL\"),N17,\"\"))))","v":""}]
[]
[null,null,"NIVEL DE SEGREGACIÓN *"]
[null,null,"UNIDAD SEGREGADA (Ej. Facultad, Programa Académico, Área)",null,null,null,"RESULTADO",null,null,null,"ANALISIS DE DATOS SEGREGADO"]
[]
[]
[]
[]
[]
[]
[]
[]
[]
[]
[]
[]
[]
[null,null,null,null,null,null,"Estratégico",null,null,"Eficacia"]
[null,null,null,null,null,null,"Misional",null,null,"Eficiencia"]
[null,null,null,null,null,null,"Apoyo",null,null,"Acreditación"]
[null,null,null,null,null,null,"Seguimiento, Medición, Análisis y Evaluación",null,null,"Positiva"]
[null,null,null,null,null,null,"Direccionamiento Estratégico",null,null,"Negativa"]
[null,null,null,null,null,null,"Planeación Institucional",null,null,"Por Unidad Regional"]
[null,null,null,null,null,null,"Proyectos Especiales y Relaciones Interinstitucionales",null,null,"Por Facultad"]
[null,null,null,null,null,null,"Sistemas Integrados",null,null,"Por Programa Académico"]
[null,null,null,null,null,null,"Autoevaluación y Acreditación",null,null,"Por área"]
[null,null,null,null,null,null,"Comunicaciones",null,null,"Por Laboratorio"]
[null,null,null,null,null,null,"Formación y Aprendizaje",null,null,"Otros"]
[null,null,null,null,null,null,"Ciencia, Tecnología e Innovación",null,null,"No Aplica"]
[null,null,null,null,null,null,"Interacción Social Universitaria"]
[null,null,null,null,null,null,"Bienestar Universitario"]
[null,null,null,null,null,null,"Admisiones y Registro"]
[null,null,null,null,null,null,"Graduados"]
[null,null,null,null,null,null,"Dialogando con el Mundo"]
[null,null,null,null,null,null,"Talento Humano"]
[null,null,null,null,null,null,"Jurídica"]
[null,null,null,null,null,null,"Financiera"]
[null,null,null,null,null,null,"Sistemas y Tecnología"]
[null,null,null,null,null,null,"Bienes y Servicios"]
[null,null,null,null,null,null,"Documental"]
[null,null,null,null,null,null,"Apoyo Académico"]
[null,null,null,null,null,null,"Control Interno"]
[null,null,null,null,null,null,"Control Disciplinario"]
[null,null,null,null,null,null,"Servicio de Atención al Ciudadano"]

{"sheet":"ACTUALIZACIONES","index":7,"n_rows":29,"n_cols":5,"rows_kept":29,"cut":false,"hidden":false,"merged":[[28,1,28,4],[1,1,4,1],[1,2,1,3],[2,2,2,3],[3,2,4,3],[6,1,6,4],[25,1,25,4]]}
[]
[null,null,"MACROPROCESO ESTRATÉGICO",null,"CÓDIGO: ESGr027"]
[null,null,"PROCESO GESTIÓN SISTEMAS INTEGRADOS - CALIDAD",null,"VERSIÓN: 8"]
[null,null,"MATRIZ DE MEDICIÓN Y SEGUIMIENTO A LOS PROCESOS DE GESTIÓN",null,"VIGENCIA: 2023-07-28"]
[null,null,null,null,"PÁGINA: 4 de 4"]
[]
[null,"CONTROL DE ACTUALIZACIONES"]
[null,"FECHA","DESCRIPCIÓN DE LA ACTUALIZACIÓN","RESPONSABLE","CARGO"]
[null,"2022-06-18","Oportunidad en los términos de respuesta frente a los requerimientos jurídicos (Integradoc) segundo Trimestre 2022","Manuel David Macchi Álvarez","Asesor Jurídico"]
[null,"2022-06-18","Proceso jurídico en recuperación de cartera","Manuel David Macchi Álvarez","Asesor Jurídico"]
[null,"2022-06-18","Oportunidad de respuesta en revisión de términos de referencia y minuta de contratación Publico-Privada","Manuel David Macchi Álvarez","Asesor Jurídico"]
[null,"2022-06-18","Oportunidad de respuesta en revisión minuta y garantía de contratación Directa","Manuel David Macchi Álvarez","Asesor Jurídico"]
[null,"2022-10-14","Oportunidad en los términos de respuesta frente a los requerimientos jurídicos (Integradoc) segundo Trimestre 2022","Manuel David Macchi Álvarez","Asesor Jurídico"]
[null,"2023-03-30","AJU-4: Se ajusta la fórmula en cuanto al denominador así: de Total de solicitudes recibidas a Total de solicitudes cerradas\nAJU-5: El indicador cumplió la meta establecida al último corte del año 2022, se incrementará de un 80% a un 85% para este 2023, adicional, se ajusta la fórmula en el denominador como se detalla a continuación: Total de solicitudes recibidas a Total de solicitudes cerradas\nAJU-7: Se ajusta la fórmula, en específico el denominador de la siguiente manera: pasa de Total de solicitudes allegadas como requerimientos jurídicos por Integradoc a Total de solicitudes contestadas, allegadas como requerimientos jurídicos por Integradoc.\nAJUP-8:  Se incorpora un nuevo indicador Eficacia en la defensa judicial de las acciones de tutela en que la Universidad es la accionada\nLa fórmula para medir es: (No.  tutelas ganadas/Total tutelas accionadas archivadas)*100","Jheny Lucia Cardona Ricard","Directora Jurídica"]
[null,"2023-06-01","AJU-6: Se ajusta la fórmula del indicador de la siguiente manera: Valor recuperado de cartera*100/ Valor total en Cartera.","Jheny Lucia Cardona Ricard","Directora Jurídica"]
[null,"2023-08-16","Se incorpora planificación de actividades para cada Objetivo Específico","Jheny Lucia Cardona Ricard","Directora Jurídica"]
[null,"2024-02-27","AJU-4 Subir la meta del 80% al 85%\nAJU-5 Se mantiene la meta en el 85% atendiendo a las novedades presentadas en la contratación del equipo de trabajo.\nAJU-6 Pendiente, Se le envía reiteración a la comisión de gestión la solicitud de desactivación del indicador.\nAJU-7 Se mantiene la meta del 80% debido a las novedades de contratación.\nAJU-8 Sube la meta del 80% al 85%","Jheny Lucia Cardona Ricard","Directora Jurídica"]
[null,"2024-07-19","AJU-6 Se ajusta la fórmula del indicador de la siguiente manera: de \"Valor Recuperado de cartera*100/Valor Total en Cartera\" a \"Casos gestionados y con seguimiento*100/Total de casos en/para cobro jurídico (a satisfacción de criterios)\". Adicional, se actualiza la frecuencia de medición a Semestral y frecuencia de resultado a Semestral.","Laura Nathaly Ortiz Becerra","Directora Jurídica"]
[]
[]
[]
[]
[]
[]
[]
[null,"Diagonal 18 No. 20-29 Fusagasugá – Cundinamarca\nTeléfono (601)  8281483 Línea Gratuita 018000180414\nwww.ucundinamarca.edu.co   E-mail:  info@ucundinamarca.edu.co\nNIT: 890.680.062-2                                                                             "]
[]
[]
[null,"Documento controlado por el Sistema de Gestión de la Calidad\nAsegúrese que corresponde a la última versión consultando el Portal Institucional"]

{"sheet":"ITEM","index":8,"n_rows":4,"n_cols":3,"rows_kept":4,"cut":false,"hidden":true,"merged":[]}
["MENSUAL",null,"NÚMERO"]
["TRIMESTRAL",null,"PORCENTAJE"]
["SEMESTRAL"]
["ANUAL"]